Cogmind - Beta 16 @@@ ROGUE MODE // 2025.11.08 @ 15:01:30 // Winter2019/RPGLIKE Player: Gallgagger Result: Assimilated 0b10! Performance ------------- Evolutions (9) 4500 Regions Visited (33) 6600 Robots Destroyed (2404) 12020 Value Destroyed (146442) 146442 Prototype IDs (382) 7640 Alien Tech Used (0) 0 Bonus (177567) 177567 TOTAL SCORE: 354769 Bonus ------- Triggered High Security 5000 High Alert Combat Kills 100914 Follower Combat Kills 3851 Destroyed Unchained 5000 Awakened Behemoth Slayer 1000 Entered Garrisons 200 Met Data Miner 300 Destroyed Z-Imprinter 1000 Acquired ECA 300 Met Warlord at Base 500 MAIN.C Attacked Warlord 500 Warlord Defense Kills 26748 Met Warlord at Research 2000 Hacked God Mode 5000 Scanned by Researcher 500 Destroyed MAIN.C Guards 500 Met MAIN.C 5000 Destroyed MAIN.C Shell 5000 Destroyed MAIN.C 10000 Used 0b10 Conduit 2000 Win 3000 Friendly Fire -746 Cogmind --------- Core Integrity 180/1800 Matter 300/300 Energy 2759/2820 System Corruption 0% Temperature Warm (110) Movement Flying (19) Location 0b10 Command Parts ------- > --- POWER (3) -------- Hybrid Graviton Reactor Hybrid Graviton Reactor Concept Zero-point Core > --- PROPULSION (6) --- Cooled Q-thruster Experimental Surge Thruster Concept Fieldthrust Drive Concept Fieldthrust Drive Concept Fieldthrust Drive > --- UTILITY (11) ----- Experimental Power Amplifier Advanced Quantum Shading Machine Experimental Signal Interpreter Experimental Core Analyzer Experimental Armor Integrity Analyzer Advanced Particle Charger Quantum Capacitor Experimental Focal Shield Advanced System Restoration Module > --- WEAPON (4) ------- Latent Energy Streamer Powered Cannon > --- INVENTORY (6) ---- Protomatter-80 Concept Weapon Articulator Graphene Brace Thermal Barrier Crosscalibrator Subatomic Replicator Peak State ------------ > --- POWER ------------ Hybrid Graviton Reactor Hybrid Graviton Reactor Concept Zero-point Core > --- PROPULSION ------- Cooled Q-thruster Cooled Q-thruster Experimental Surge Thruster Concept Fieldthrust Drive Concept Fieldthrust Drive Concept Fieldthrust Drive > --- UTILITY ---------- Experimental Power Amplifier Advanced Gravity Neutralizer Experimental Signal Interpreter Concept Weapon Articulator Experimental Core Analyzer Experimental Armor Integrity Analyzer Advanced Particle Charger Quantum Capacitor Graphene Brace Advanced Hardlight Generator > --- WEAPON ----------- Hypervelocity EM Gauss Rifle Powered Cannon Stasis Projector > --- INVENTORY -------- Improved Q-thruster Experimental Cooling System Experimental Focal Shield Crosscalibrator Subatomic Replicator Latent Energy Streamer [Rating: 229] Favorites ----------- Power Hybrid Graviton Reactor Engine Light Ion Engine Power Core Light Nuclear Core Reactor Hybrid Graviton Reactor Propulsion Cooled Q-thruster Wheel Wheel Flight Unit Cooled Q-thruster Utility Graphene Brace Device Graphene Brace Processor Experimental Armor Integrity Analyzer Hackware Hacking Suite Protection Scrap Shield Weapon Powered Cannon Energy Gun Hypervelocity EM Gauss Rifle Energy Cannon Powered Cannon Ballistic Gun Subdweller Machine Gun Special Weapon Stasis Projector Piercing Weapon CR-A16's Behemoth Slayer Build | -11 -10 -10 -8 -8 -7 -7 -7 -7 -7 -6 -6 -6 -6 -6 -5 -5 -5 -5 -5 -5 -5 -4 -4 -4 -4 -4 -3 -3 -2 -2 -2 -1 -1 ------- Run | Yrd Mat Sub Mat Gar Fac Low Low Zio Dee Pro Fac Low Low Dat Pro Fac Was Fac Upp Upp War Pro Fac Was Fac Arm Res Qua Res Tes Frg Acc Com Slots Evolved 20 | 4 . 3 2 . 4 . . . . 1 1 . . . 1 . . . . . 1 . 1 . . . . 1 1 . . . . Power 2 | 1 . . . . . . . . . . 1 . . . . . . . . . . . . . . . . . . . . . . Propulsion 5 | 1 . 1 1 . 1 . . . . . . . . . . . . . . . 1 . . . . . . . . . . . . Utility 10 | 1 . 2 1 . 3 . . . . . . . . . 1 . . . . . . . 1 . . . . 1 . . . . . Weapon 3 | 1 . . . . . . . . . 1 . . . . . . . . . . . . . . . . . . 1 . . . . Parts Attached 137 | 7 5 5 10 . 10 2 1 2 6 . 10 1 . . 1 2 1 13 . 1 13 . 3 1 5 2 . 2 4 5 20 . 5 Power 21 | 2 . . 3 . 3 . . . 2 . 2 . . . . . . . . . 3 . . . 2 . . . . . 4 . . Engine 3 | 2 . . 1 . . . . . . . . . . . . . . . . . . . . . . . . . . . . . . Core 9 | . . . 2 . 3 . . . . . 2 . . . . . . . . . 1 . . . . . . . . . 1 . . Reactor 9 | . . . . . . . . . 2 . . . . . . . . . . . 2 . . . 2 . . . . . 3 . . Propulsion 27 | 2 2 1 4 . 1 . . . . . . . . . . . 1 6 . . 2 . . . 2 . . . 1 1 4 . . Treads . | . . . . . . . . . . . . . . . . . . . . . . . . . . . . . . . . . . Leg . | . . . . . . . . . . . . . . . . . . . . . . . . . . . . . . . . . . Wheel 5 | 2 2 1 . . . . . . . . . . . . . . . . . . . . . . . . . . . . . . . Hover . | . . . . . . . . . . . . . . . . . . . . . . . . . . . . . . . . . . Flight 22 | . . . 4 . 1 . . . . . . . . . . . 1 6 . . 2 . . . 2 . . . 1 1 4 . . Utility 77 | 2 . 2 3 . 6 2 1 2 4 . 6 1 . . 1 2 . 7 . 1 8 . 3 1 1 2 . 2 2 3 11 . 4 Device 51 | 2 . . 3 . 2 2 . 2 2 . 5 1 . . . 1 . 6 . 1 5 . 1 1 1 . . 1 1 3 7 . 4 Storage . | . . . . . . . . . . . . . . . . . . . . . . . . . . . . . . . . . . Processor 15 | . . . . . 2 . . . . . 1 . . . 1 1 . 1 . . 2 . 2 . . . . 1 1 . 3 . . Hackware 4 | . . . . . 1 . . . . . . . . . . . . . . . . . . . . 2 . . . . 1 . . Protection 7 | . . 2 . . 1 . 1 . 2 . . . . . . . . . . . 1 . . . . . . . . . . . . Artifact . | . . . . . . . . . . . . . . . . . . . . . . . . . . . . . . . . . . Weapon 12 | 1 3 2 . . . . . . . . 2 . . . . . . . . . . . . . . . . . 1 1 1 . 1 Energy Gun 5 | 1 3 . . . . . . . . . . . . . . . . . . . . . . . . . . . . 1 . . . Energy Cannon 3 | . . 1 . . . . . . . . 1 . . . . . . . . . . . . . . . . . . . . . 1 Ballistic Gun 1 | . . 1 . . . . . . . . . . . . . . . . . . . . . . . . . . . . . . . Ballistic Cannon . | . . . . . . . . . . . . . . . . . . . . . . . . . . . . . . . . . . Launcher . | . . . . . . . . . . . . . . . . . . . . . . . . . . . . . . . . . . Special Weapon 2 | . . . . . . . . . . . . . . . . . . . . . . . . . . . . . 1 . 1 . . Impact Weapon . | . . . . . . . . . . . . . . . . . . . . . . . . . . . . . . . . . . Slashing Weapon . | . . . . . . . . . . . . . . . . . . . . . . . . . . . . . . . . . . Piercing Weapon 1 | . . . . . . . . . . . 1 . . . . . . . . . . . . . . . . . . . . . . Special Melee Weapon . | . . . . . . . . . . . . . . . . . . . . . . . . . . . . . . . . . . Unidentified Prototypes 46 | . . 1 1 . 1 1 . 1 4 . 2 . . . . 1 . 8 . . 8 . 3 1 2 . . . 2 3 4 . 3 Corrupted Parts 1 | . . . . . . . . . . . . . . . . . . . . . . . . . . . . . . . . . 1 System Corruption 4 | . . . . . . . . . . . . . . . . . . . . . . . . . . . . . . . . . 4 Parts Lost 9 | . . . 1 . 2 . . . . . 2 . . . . . . . 1 . 1 . . . . . . . . . . . 2 Power 2 | . . . . . . . . . . . 1 . . . . . . . . . 1 . . . . . . . . . . . . Propulsion 1 | . . . . . . . . . . . . . . . . . . . . . . . . . . . . . . . . . 1 Utility 6 | . . . 1 . 2 . . . . . 1 . . . . . . . 1 . . . . . . . . . . . . . 1 Weapon . | . . . . . . . . . . . . . . . . . . . . . . . . . . . . . . . . . . Highest Loss Streak 2 | . . . 1 . 1 . . . . . 1 . . . . . . . 1 . 1 . . . . . . . . . . . 2 To Critical Strikes . | . . . . . . . . . . . . . . . . . . . . . . . . . . . . . . . . . . Average Backups 2 | . . 1 1 1 1 2 1 2 3 3 2 2 2 3 2 2 2 2 2 2 2 3 2 2 2 3 3 3 3 4 4 4 5 Power . | . . . . . . . . . . . . . . . . . . . . . . . . . . . . . . . . . . Propulsion . | . . . . . . . . . . . . . . . . . . . . . . . . . . . . . . . . . . Utility 1 | . . . . 1 1 1 . . 1 1 1 1 1 2 1 1 1 1 1 1 1 2 1 1 1 2 2 2 1 1 2 3 4 Weapon . | . . 1 . . . . . . 1 2 1 1 1 1 1 1 1 1 1 1 1 1 1 1 1 1 1 1 1 1 . . . Tool/Special . | . . . . . . . . . . . . . . . . . . . . . . . . . . . . . . . . . . Unused Backups 2 | . . . . . . . . . . . . . . . . . . . . . . . . . . . . . . . . . 2 Power . | . . . . . . . . . . . . . . . . . . . . . . . . . . . . . . . . . . Propulsion . | . . . . . . . . . . . . . . . . . . . . . . . . . . . . . . . . . . Utility 1 | . . . . . . . . . . . . . . . . . . . . . . . . . . . . . . . . . 1 Weapon . | . . . . . . . . . . . . . . . . . . . . . . . . . . . . . . . . . . Tool/Special 1 | . . . . . . . . . . . . . . . . . . . . . . . . . . . . . . . . . 1 Average Slot Usage (%) 87 | . 99 76 76 77 91 87 93 94 94 94 90 93 94 94 94 95 95 91 90 90 85 85 85 86 86 83 85 85 84 85 86 91 87 Engine 2 | . 25 16 2 . . . . . . . . . . . . . . . . . . . . . . . . . . . . . . Core 5 | . . . 12 13 16 16 16 16 6 5 5 10 10 10 10 10 10 10 10 10 2 4 4 4 1 . . . . . 1 4 4 Reactor 5 | . . . . . . . . . 9 11 8 5 5 5 5 5 5 5 5 5 6 4 4 4 7 9 9 8 8 6 6 8 8 Wheel 2 | . 25 24 10 . . . . . . . . . . . . . . . . . . . . . . . . . . . . . . Flight 22 | . . . 16 28 28 27 27 27 27 27 26 26 26 26 25 25 25 23 25 25 27 28 27 27 27 27 27 26 25 25 25 25 24 Device 25 | . 25 16 19 21 25 24 27 27 27 27 30 30 31 31 30 29 25 22 20 20 22 23 26 27 27 24 26 26 25 24 27 29 28 Processor 10 | . . . . . 3 11 11 11 11 11 10 10 10 10 14 15 20 20 20 20 14 14 13 13 13 13 13 15 16 16 13 12 12 Protection 1 | . . 8 7 7 4 . 4 5 5 5 1 . . . . . . . . . . . . . . . . . . . . . . Energy Gun 1 | . 24 . . . . . . . . . . . . . . . . . . . . . . . . . . . . 3 3 4 . Energy Cannon 5 | . . 7 7 7 5 5 5 5 5 5 5 5 5 5 5 5 5 5 5 5 4 4 4 4 4 4 4 4 4 4 5 8 8 Piercing Weapon 1 | . . . . . . . . . . . 1 5 5 5 5 5 5 5 5 5 4 4 4 4 4 4 4 4 4 4 1 . . Peak Build Rating 229 | 9 11 27 53 53 79 93 79 89 101 93 102 106 106 106 110 112 116 159 156 147 173 169 181 179 178 178 177 191 200 205 229 226 224 Average Rating 139 | 4 10 26 43 52 72 82 78 80 91 93 96 102 106 106 109 111 115 139 147 146 166 169 175 176 176 175 176 186 193 201 210 224 217 On Entrance 120 | . 9 11 27 53 53 78 75 79 81 93 93 101 106 106 106 110 112 116 156 147 147 169 169 176 176 177 174 177 191 194 200 224 224 Avg Prop Armor Cover (%) 1 | . . . 1 . . . . . . . . . . . 1 . . 2 1 . . . . . . . . . 1 . . . 1 Naked Turns . | . . . . . . . . . . . . . . . . . . . . . . . . . . . . . . . . . . Heaviest Build 85 | 12 15 37 41 41 41 41 36 36 44 41 49 50 48 48 48 48 47 51 52 52 82 79 80 80 80 78 78 78 79 85 85 85 85 Greatest Support 99 | 32 32 40 49 44 50 50 50 50 50 50 58 58 58 58 58 58 61 73 61 61 80 80 80 80 80 78 78 78 82 99 99 98 98 Greatest Overweight (x) 1 | . . 1 1 . . . . . . . 1 . . . . . . 1 . . 1 . . . . . . . 1 . 1 . . Average Overweight (x) . | . . . . . . . . . . . . . . . . . . . . . . . . . . . . . . . . . . Largest Inventory Capacity 6 | 2 2 2 2 2 2 3 3 3 3 3 3 3 3 3 3 3 3 3 3 3 3 3 3 3 3 4 4 4 4 5 6 6 6 Average Capacity 3 | 2 2 2 2 2 2 2 3 3 3 3 3 3 3 3 3 3 3 3 3 3 3 3 3 3 3 3 4 4 4 4 5 6 6 Most Carried 6 | . 2 2 2 2 2 3 1 3 3 3 3 3 3 3 3 3 3 3 3 3 3 3 3 3 3 4 4 4 4 5 6 6 6 Average Carried 3 | . 1 2 1 2 1 2 1 2 3 3 2 2 3 3 2 3 3 2 2 3 2 3 2 3 2 3 3 3 3 4 5 5 5 Final Capacity 6 | 2 2 2 2 2 2 3 3 3 3 3 3 3 3 3 3 3 3 3 3 3 3 3 3 3 3 4 4 4 4 5 6 6 6 Final Carried 6 | . 2 2 2 2 1 1 1 3 3 3 2 3 3 3 3 3 3 3 3 3 3 3 3 3 3 4 3 4 4 5 5 6 6 Class Distribution -------------------- 51% | Hacker-Sprinter 26% | Scavenger-Sprinter 12% | Scavenger-Mutant 6% | Commander-Sprinter Dominant Class ---------------- Scavenger-Mutant | -10/Materials Scavenger-Mutant | -10/Subcaves Scavenger-Sprinter | -8/Materials Scavenger-Sprinter | -8/Garrison Scavenger-Sprinter | -7/Factory Scavenger-Sprinter | -7/Lower Caves Scavenger-Sprinter | -7/Lower Caves Scavenger-Sprinter | -7/Zion Scavenger-Sprinter | -7/Deep Caves Scavenger-Sprinter | -6/Proximity Caves Scavenger-Sprinter | -6/Factory Scavenger-Sprinter | -6/Lower Caves Scavenger-Sprinter | -6/Lower Caves Scavenger-Sprinter | -6/Data Miner Scavenger-Sprinter | -5/Proximity Caves Hacker-Sprinter | -5/Factory Scavenger-Sprinter | -5/Waste Hacker-Sprinter | -5/Factory Hacker-Sprinter | -5/Upper Caves Hacker-Sprinter | -5/Upper Caves Commander-Sprinter | -5/Warlord Hacker-Sprinter | -4/Proximity Caves Hacker-Sprinter | -4/Factory Hacker-Sprinter | -4/Waste Hacker-Sprinter | -4/Factory Hacker-Sprinter | -4/Armory Commander-Sprinter | -3/Research Commander-Sprinter | -3/Quarantine Hacker-Sprinter | -2/Research Hacker-Sprinter | -2/Testing Hacker-Sprinter | -2/Protoforge Hacker-Sprinter | -1/Access Hacker-Sprinter | -1/Command Resources | -11 -10 -10 -8 -8 -7 -7 -7 -7 -7 -6 -6 -6 -6 -6 -5 -5 -5 -5 -5 -5 -5 -4 -4 -4 -4 -4 -3 -3 -2 -2 -2 -1 -1 ----------- Run | Yrd Mat Sub Mat Gar Fac Low Low Zio Dee Pro Fac Low Low Dat Pro Fac Was Fac Upp Upp War Pro Fac Was Fac Arm Res Qua Res Tes Frg Acc Com Matter Collected 5269 | 250 70 74 120 10 120 2093 36 20 70 50 237 27 . . 16 28 . 206 24 31 225 15 70 20 110 62 10 36 77 143 702 30 287 Remotely . | . . . . . . . . . . . . . . . . . . . . . . . . . . . . . . . . . . Salvage Created 148949 | 133 1172 674 2465 1297 6659 1048 552 . 1056 1210 6410 806 443 . 1651 1839 . 7665 816 884 10564 1020 6663 . 4458 3809 606 1241 2930 7081 29735 5233 38829 Parts 6900 | 9 96 61 144 84 375 50 11 . 48 52 345 44 9 . 120 101 . 464 46 46 388 74 308 6 288 193 49 79 116 273 1336 223 1462 Haulers Intercepted 19 | . . . 5 . 3 . . . . . 3 . . . . . . 4 . . . . 2 . 1 . . . 1 . . . . Recyclers Shooed 2 | . . . . . . . . . . . . . . . . . . . . . . . 2 . . . . . . . . . . Parts Field Recycled . | . . . . . . . . . . . . . . . . . . . . . . . . . . . . . . . . . . Retrieved Matter . | . . . . . . . . . . . . . . . . . . . . . . . . . . . . . . . . . . Parts Self-Destructed 467 | . . 17 . . . 51 10 . . 53 . 44 9 . 116 . . . 48 45 . 74 . . . . . . . . . . . Prevented 1 | . . . . . . . . . . . . . . . . . . . . 1 . . . . . . . . . . . . . Parts Restored 2 | . . . . . . . . . . . . . . . . . . . . . . . . . . . . . . . 2 . . Faulty 2 | . . . . . . . . . . . . . . . . . . . . . . . . . . . . . . . 2 . . Kills | -11 -10 -10 -8 -8 -7 -7 -7 -7 -7 -6 -6 -6 -6 -6 -5 -5 -5 -5 -5 -5 -5 -4 -4 -4 -4 -4 -3 -3 -2 -2 -2 -1 -1 ------- Run | Yrd Mat Sub Mat Gar Fac Low Low Zio Dee Pro Fac Low Low Dat Pro Fac Was Fac Upp Upp War Pro Fac Was Fac Arm Res Qua Res Tes Frg Acc Com Combat Hostiles Destroyed 2451 | . 42 24 54 38 151 24 4 . 19 21 117 17 5 . 35 36 . 153 17 17 214 28 80 1 89 64 13 19 35 91 438 85 520 Melee 7 | . . . . . . . . . . . 1 1 . . . . . . . . . . . . 1 . . . . . 4 . . Guns 46 | . 40 3 . . . . . . . . . . . . . . . . . . . . . . . . . . . . 3 . . Cannons 1881 | . . 16 51 33 113 22 4 . 18 17 101 14 5 . 29 32 . 134 15 16 181 25 67 1 84 57 11 17 28 73 278 73 366 AOE 114 | . . . . . 15 . . . . . 1 . . . . . . 4 . . 1 . . . 1 . . . . . 42 . 50 Classes Destroyed 40 | 2 5 2 6 4 2 1 . . 2 1 1 . . . . . . 3 . . 2 . . 1 . . . 2 3 1 2 . . Worker 30 | . 1 . 1 . . . . . . . 6 . . . . . . 3 . . . . 5 . 4 . . . . . 6 . 4 Builder 11 | . . . . . . . . . . . . . . . . . . 2 . . . . 1 . . . . . . 1 5 2 . Tunneler 7 | 3 1 . . . . . . . . . . . . . . . . . . . . . 3 . . . . . . . . . . Hauler 19 | . . . 5 . 3 . . . . . 3 . . . . . . 4 . . . . 2 . 1 . . . 1 . . . . Recycler 8 | 1 . . . . . . . . . . . . . . . . . 1 . . . . 3 . . . . . . . . . 3 Carrier 9 | . . . . . . . . . . . . . . . . . . 1 . . . . . . . . . . . 1 2 . 5 Mechanic 35 | . . . . . 3 . . . . . . . . . . . . 1 . . 3 . 2 . . . . . . . 10 1 15 Operator 17 | . 1 . 2 . 2 . . . . . . . . . . . . 1 . . . . 1 . . 1 . 3 . 1 5 . . Drone 28 | . . . . . . . . . . . . . . . . . . 4 . . . 2 . . . . . . . . 22 . . Turret 36 | . . 2 . . . . . . . . . . . . . . . . . . . . 34 . . . . . . . . . . Watcher 48 | . . . . . 3 . . . . . 6 . . . 2 . . 5 . . . . 7 . 4 1 . . . 2 7 . 11 Swarmer 210 | . 9 4 4 11 8 8 . . . 1 9 4 . . 3 5 . 21 4 5 12 15 5 . 25 4 6 1 . . . 6 40 Cutter 30 | . . . . 3 . . . . . . 5 . . . . . . 3 . . . . 2 . 2 3 . . . . . 1 11 Saboteur 86 | . . . . 2 . . . . . . 4 . . . . . . 5 . . 10 . 1 . 1 4 . . . 5 24 6 24 Grunt 896 | . 30 . 29 9 49 9 3 . . 12 44 5 4 . 15 13 . 49 5 8 85 6 38 . 19 18 . 7 5 29 175 33 197 Brawler 137 | . . . 2 . 5 . . . . . 8 2 . . 2 1 . 4 2 2 17 . 2 . 1 . . . . 6 32 5 46 Duelist 124 | . . . 3 . 6 5 1 . . 4 4 . . . 1 . . 4 2 . 6 . 1 . 2 6 . . . 11 27 6 35 Protector 79 | . . . 1 . 14 . . . . 1 5 . . . 1 . . 3 . . 12 . 2 . 4 2 . . . 5 18 3 8 Researcher 8 | . . . . . . . . . . . . . . . . . . . . . . . . . . . . 2 . 3 3 . . Sentry 127 | . . 1 12 10 13 2 . . . 2 7 2 1 . 6 4 . 12 1 1 . 2 11 . 9 6 1 . 4 4 12 1 3 Demolisher 44 | . . . . 1 1 . . . . . 2 . . . . . . . . . 10 . 1 . . 4 . . . . 12 . 13 Specialist 69 | . . . . . . . . . . . 4 . . . 1 . . 3 . . 9 . . . 5 . . 3 . 2 18 . 24 Hunter 200 | . . . 2 1 32 . . . . . 6 2 . . 5 6 . 17 1 . 4 2 11 . 10 4 2 2 7 15 10 9 52 Programmer 229 | . . . . 2 22 . . . . . 17 1 . . . 5 . 22 2 . 16 . 2 . 7 11 3 5 1 11 41 7 54 Heavy 11 | . . . 1 . 1 . . . . . 2 . . . . . . 3 . . . . 1 . 2 1 . . . . . . . Q-Series 8 | . . . . . . . . . . . . . . . . . . . . . . . . . . . . . . . 8 . . Behemoth 24 | . . . . . . . . . . 1 . 1 . . 2 1 . 1 . 1 6 1 2 . 2 1 1 . . . 1 2 1 Compactor 1 | . . . . . . . . . . . . . . . . . . . . . . . . 1 . . . . . . . . . M Guard 2 | . . . . . . . . . . . . . . . . . . . . . . . . . . . . . . . . . 2 Lightning 1 | . . . . . . . . . . . 1 . . . . . . . . . . . . . . . . . . . . . . Hotshot 17 | . . . . . . . . . . . . . . . . . . . . . . . . . . . . . . . 17 . . Decapitator 5 | . . . . . . . . . . . . . . . . . . . . . . . . . . . . . . . 5 . . Overlord 1 | . . . . . . . . . . . . . . . . . . . . . . . . . . . . . . . 1 . . Combat Programmer 2 | . . . . . . . . . . . . . . . . . . . . . . . . . . . . . . . . . 2 Investigator 5 | . . . . . . . . . . . . . . . . . . . . . . . . . . . . . . 1 2 1 1 Striker 22 | . . . . . . . . . . . . . . . . . . . . . 12 . . . . . . . . . 4 4 2 Executioner 31 | . . . . . . . . . . . . . . . . . . . . . 14 . . . . . . . . 2 9 2 4 Alpha 7 3 | . . . . . . . . . . . . . . . . . . . . . . . . . . . . 1 . . 2 . . Fortress 1 | . . . . . . . . . . . . . . . . . . . . . . . . . . . . . . 1 . . . V-Series 1 | . . . . . . . . . . . . . . . . . . . . . . . . . . . . . . . 1 . . Subdweller 22 | . 3 19 . . . . . . . . . . . . . . . . . . . . . . . . . . . . . . . Z-Technician 5 | . . . . . . . . . 5 . . . . . . . . . . . . . . . . . . . . . . . . Z-Light 10 | . . . . . . . . . 10 . . . . . . . . . . . . . . . . . . . . . . . . Assembled 9 | . . . . . . . . . 9 . . . . . . . . . . . . . . . . . . . . . . . . Wasp 2 | . . . . . . . . . . . . . . . . . . . . . . . . . . . . . 2 . . . . Thug 1 | . . . . . . . . . . . . . . . . . . . . . . . . . . . . . 1 . . . . Martyr 3 | . . . . . . . . . . . 1 . . . . . . . . . . . . . . . . . 2 . . . . Guerrilla 3 | . . . . . . . . . . . . . . . . . . . . . . . . . . . . . 3 . . . . Wizard 1 | . . . . . . . . . . . . . . . . . . . . . . . . . . . . . 1 . . . . Mutant 6 | . . . . . . 1 . . . . . . . . . . . . . . . . . . . . . . 5 . . . . Knight 2 | . . . . . . . . . . . . . . . . . . . . . . . . . . . . . 2 . . . . Dragon 1 | . . . . . . . . . . . . . . . . . . . . . . . . . . . . . 1 . . . . Hydra 1 | . . . . . . . . . . . . . . . . . . . . . . . . . . . . . 1 . . . . Best Kill Streak 80 | 4 8 5 7 8 26 9 4 . 11 6 27 8 4 . 13 10 . 34 7 6 45 16 80 1 30 11 5 6 17 38 49 20 45 Combat Bots Only 45 | . 8 3 7 8 16 9 4 . 9 6 26 8 4 . 13 10 . 33 7 6 45 16 13 1 28 11 5 6 16 35 45 18 43 Max Kills in Single Turn 18 | 1 2 1 1 1 5 1 1 . 5 1 2 1 1 . 1 1 . 3 2 1 2 1 2 1 2 2 2 1 2 2 12 2 18 Gunslinging 1 | . 1 . . . . . . . . . . . . . . . . . . . . . . . . . . . . . . . . Exploded 18 | . . . . . 4 . . . . . 1 . . . . . . 2 . . 1 . . . 1 . . . . . 4 . 18 Melee 1 | . . . . . . . . . . . 1 1 . . . . . . . . . . . . 1 . . . . . 1 . . Uniques/NPCs Destroyed 10 | . . . . . . . . . 1 . 1 . . . . 1 . 2 . . 1 . 1 . . . . . 1 . . . 2 Z-Imprinter (-7/Deep Caves) CL-0N3 (-6/Factory) 6S-H0T (-5/Factory) QV-33N (-5/Factory) DW-4LL (-5/Factory) Fake God Mode (-5/Warlord) GL-D0S (-4/Factory) Warlord (-2/Research) MAIN.C Shell (-1/Command) MAIN.C (-1/Command) Combat | -11 -10 -10 -8 -8 -7 -7 -7 -7 -7 -6 -6 -6 -6 -6 -5 -5 -5 -5 -5 -5 -5 -4 -4 -4 -4 -4 -3 -3 -2 -2 -2 -1 -1 -------- Run | Yrd Mat Sub Mat Gar Fac Low Low Zio Dee Pro Fac Low Low Dat Pro Fac Was Fac Upp Upp War Pro Fac Was Fac Arm Res Qua Res Tes Frg Acc Com Hostile Shots Fired 6066 | . 126 83 121 98 511 36 2 . 21 55 319 44 20 . 68 114 . 362 15 15 463 62 254 . 252 112 16 44 138 229 875 325 1286 Missed 2654 | . 26 20 41 33 230 10 1 . 9 29 154 15 12 . 30 41 . 143 5 7 233 41 122 . 146 44 8 26 43 95 368 136 586 Hits 3412 | . 100 63 80 65 281 26 1 . 12 26 165 29 8 . 38 73 . 219 10 8 230 21 132 . 106 68 8 18 95 134 507 189 700 Melee 35 | . . . 3 4 . . . . 1 . 3 . . . 1 . . . . . 1 . 1 . 2 1 . . . . 7 . 11 Projectile 3377 | . 100 63 77 61 281 26 1 . 11 26 162 29 8 . 37 73 . 219 10 8 229 21 131 . 104 67 8 18 95 134 500 189 689 AOE 70 | . . 1 . 2 1 . . . . . 1 . . . . . . 4 . . 5 . 4 . . 6 . . 1 1 28 2 14 Critical Strikes 184 | . 1 3 7 3 8 1 . . . 1 7 . . . 1 8 . 10 . . 11 . 13 . 7 1 . 2 10 5 29 9 47 Actively Blocked 149 | . . . 3 3 8 1 . . . 1 7 . . . 1 8 . 10 . . . . 13 . 7 1 . 2 10 5 29 9 31 Part Disruptions 19 | . . . . . . . . . . . 2 . . . . . . 4 . . 1 . . . . . . . 4 . 3 . 5 Damage Taken 54320 | 4 1112 1120 1321 831 4180 417 14 . 743 341 2365 507 85 . 552 920 . 3299 137 82 3862 215 2416 . 1415 1283 145 348 1087 2519 10107 2242 10651 Core 42283 | 2 910 651 721 417 2881 340 14 . 542 233 1788 405 65 . 442 745 . 2651 113 66 3129 170 1950 . 1135 1060 119 278 875 2042 8181 1801 8557 Absorbed by Shields 15715 | . . . . . . . . . . . 549 174 46 . 222 408 . 882 48 48 1330 120 684 . 644 348 18 54 405 911 2726 1394 4704 Redirected to Core 34779 | 2 629 573 652 407 2268 260 . . 370 201 1457 358 65 . 379 581 . 2238 82 47 2418 144 1640 . 932 770 95 254 727 1678 6943 1481 7128 Ignored by Resistances 7219 | . . 8 . . . 24 . . 3 8 84 23 1 . 25 83 . 122 4 8 193 14 78 . 91 32 4 4 66 100 992 869 4383 Regen/Repaired (Parts) 5 | . . . . . . . . . . . . . . . . . . . . . 5 . . . . . . . . . . . . Core Remaining (%) 87 | 99 . 94 . 97 . . . . . 100 . . . . 100 . . . . . . 96 . . . 77 . 100 . . 100 . 10 Volleys Fired 6524 | 8 103 104 138 99 364 51 14 4 34 46 318 35 16 . 68 85 . 418 28 32 500 46 303 4 212 143 24 48 126 266 1267 290 1330 Largest 2 | 1 2 2 1 1 1 1 1 1 1 1 1 1 1 . 1 1 . 1 1 1 1 1 1 1 1 1 1 1 1 2 2 2 2 Hottest 180 | 40 105 105 40 40 40 40 40 40 40 40 40 40 40 . 40 40 . 40 40 40 40 40 40 40 40 40 40 40 40 80 180 80 180 Shots Fired 6609 | 8 197 117 138 99 365 54 14 4 34 46 318 35 16 . 69 85 . 416 28 32 500 45 303 4 211 143 24 48 126 267 1237 289 1337 Gun 595 | 8 197 26 . . . . . . . . . . . . . . . . . . . . . . . . . . . 20 256 33 55 Cannon 6010 | . . 91 138 99 365 54 14 4 34 46 318 35 16 . 69 85 . 416 28 32 500 45 303 4 211 143 24 48 125 247 978 256 1282 Launcher . | . . . . . . . . . . . . . . . . . . . . . . . . . . . . . . . . . . Special 4 | . . . . . . . . . . . . . . . . . . . . . . . . . . . . . 1 . 3 . . Kinetic 12 | . . 12 . . . . . . . . . . . . . . . . . . . . . . . . . . . . . . . Thermal 6162 | . 197 105 138 99 365 54 14 4 34 46 318 35 16 . 69 85 . 416 28 32 500 45 303 4 211 143 24 48 125 247 954 254 1249 Explosive . | . . . . . . . . . . . . . . . . . . . . . . . . . . . . . . . . . . Electromagnetic 431 | 8 . . . . . . . . . . . . . . . . . . . . . . . . . . . . . 20 280 35 88 Robot Hit Streak 91 | 6 27 18 23 17 75 15 25 . 11 14 40 36 21 . 23 53 . 44 31 49 91 32 79 22 48 57 73 46 37 67 56 48 41 Robot Miss Streak 3 | 2 3 2 2 2 2 1 . . 1 1 3 1 1 . 1 1 . 2 1 . 1 1 2 . 1 1 2 1 1 2 3 2 3 Penetration Max 3 | . . . . . . . . . . . . . . . . . . . . . . . . . . . . . . 2 3 . 3 Secondary Targets 2 | . 2 . . . . . . . . . . . . . . . . . . . . . . . . . . . . . . . . Max Gunslinging Chain 1 | . 1 . . . . . . . . . . . . . . . . . . . . . . . . . . . . . . . . Capacitor 4882 | . . . . . . . . . . . . . . . . . . 327 28 32 500 45 303 4 211 143 24 48 125 263 1219 287 1323 Shots Hit Robots 5741 | 6 149 70 119 63 317 47 14 . 26 40 271 37 15 . 65 76 . 359 27 28 464 37 254 3 177 118 22 45 120 246 1080 251 1195 Core Hits 3487 | 4 68 22 54 29 171 22 7 . 20 18 124 15 4 . 31 33 . 175 16 16 217 25 121 1 103 67 11 20 50 119 751 138 1035 Critical Kills 309 | . . 5 6 5 23 2 . . 1 4 16 2 . . 4 3 . 18 2 . 28 2 15 1 2 6 1 2 7 18 61 12 63 Critical Parts Destroyed . | . . . . . . . . . . . . . . . . . . . . . . . . . . . . . . . . . . Critical Strikes 313 | . 1 7 6 5 23 2 . . 1 4 16 2 . . 4 3 . 18 2 . 28 2 15 1 2 6 1 2 7 18 62 12 63 Burn 2 | . 1 1 . . . . . . . . . . . . . . . . . . . . . . . . . . . . . . . Meltdown 309 | . . 5 6 5 23 2 . . 1 4 16 2 . . 4 3 . 18 2 . 28 2 15 1 2 6 1 2 7 18 61 12 63 Destroy 1 | . . 1 . . . . . . . . . . . . . . . . . . . . . . . . . . . . . . . Impale 1 | . . . . . . . . . . . . . . . . . . . . . . . . . . . . . . . 1 . . Melee Attacks 37 | . . . . . . . . . . . . 9 . . 3 1 . 1 . 2 5 1 2 . 2 1 1 . . . 9 . . Impact . | . . . . . . . . . . . . . . . . . . . . . . . . . . . . . . . . . . Slashing . | . . . . . . . . . . . . . . . . . . . . . . . . . . . . . . . . . . Piercing 37 | . . . . . . . . . . . . 9 . . 3 1 . 1 . 2 5 1 2 . 2 1 1 . . . 9 . . Sneak Attacks 8 | . . . . . . . . . . . . . . . . . . . . . . . . . 1 1 . . . . 6 . . Combat Hostiles 2 | . . . . . . . . . . . . . . . . . . . . . . . . . 1 1 . . . . . . . Follow-up Attacks . | . . . . . . . . . . . . . . . . . . . . . . . . . . . . . . . . . . Damage Inflicted 443056 | 132 1986 2835 6911 3898 24281 3191 944 . 4288 2667 20481 2729 1199 . 4753 5824 . 25320 2191 2102 35583 2783 19845 194 14254 9159 1881 3727 8194 17173 88969 17638 107924 Guns 3313 | 85 1986 377 . . . . . . . . . . . . . . . . . . . . . . . . . . . 41 681 31 112 Cannons 386758 | . . 2458 6911 3898 20864 3191 944 . 1744 2667 20193 2533 1199 . 4753 5824 . 24434 2191 2102 35583 2783 18929 194 13485 9159 1881 3727 8194 16835 67381 16615 86086 Explosions 52139 | 47 . . . . 3417 . . . 2544 . 288 . . . . . . 886 . . . . 916 . 769 . . . . 297 20257 992 21726 Melee 846 | . . . . . . . . . . . . 196 . . . . . . . . . . . . . . . . . . 650 . . Ramming . | . . . . . . . . . . . . . . . . . . . . . . . . . . . . . . . . . . Kinetic 192 | . . 192 . . . . . . . . . . . . . . . . . . . . . . . . . . . . . . . Thermal 403462 | 47 1986 2643 6911 3898 23660 3191 944 . 4288 2667 20383 2533 1199 . 4753 5824 . 24743 2191 2102 35583 2783 19329 194 14207 9159 1881 3727 8194 17132 69599 16850 90861 Explosive 1433 | . . . . . 362 . . . . . . . . . . . . 577 . . . . 420 . 47 . . . . . 27 . . Electromagnetic 37123 | 85 . . . . 259 . . . . . 98 . . . . . . . . . . . 96 . . . . . . 41 18693 788 17063 Impact . | . . . . . . . . . . . . . . . . . . . . . . . . . . . . . . . . . . Slashing . | . . . . . . . . . . . . . . . . . . . . . . . . . . . . . . . . . . Piercing 846 | . . . . . . . . . . . . 196 . . . . . . . . . . . . . . . . . . 650 . . Highest Corruption 35 | . . . . . 5 5 5 5 . . 5 5 1 1 4 . . 6 6 6 6 2 1 1 1 6 1 5 4 8 35 3 9 Average Corruption 5 | . . . . . 2 5 5 5 . . 4 1 1 1 2 . . 4 6 6 2 2 1 1 1 3 1 4 3 6 13 1 2 Corruption Purged 209 | . . . . . . . . . . . . 4 . . . . . . . . . . . . . . . . . . 108 5 92 Corruption Blocked . | . . . . . . . . . . . . . . . . . . . . . . . . . . . . . . . . . . Effects 471 | . . . . . 18 18 12 1 . . 40 3 2 . 11 . . 33 10 11 13 6 . . 8 14 2 6 5 22 191 2 43 Message Errors 101 | . . . . . 4 3 5 . . . 12 . 1 . 4 . . 8 5 5 4 1 . . 2 2 1 2 1 8 25 . 8 Matter Fused 103 | . . . . . 3 7 2 . . . 9 1 . . 2 . . 4 2 2 5 . . . 2 4 . 2 . 4 41 . 13 Heat Flow Errors 51 | . . . . . 3 2 2 1 . . 6 1 . . 2 . . 2 1 3 1 . . . 1 1 . . . . 23 . 2 Energy Discharges 59 | . . . . . 4 1 2 . . . 4 1 . . 2 . . 5 . 1 1 2 . . 1 2 . . 1 5 20 . 7 Parts Rejected 7 | . . . . . . . . . . . . . . . . . . . . . . 1 . . . 1 . . . . 5 . . Parts Fused 4 | . . . . . . . . . . . . . . . . . . 1 . . . . . . . . . 1 . . 2 . . Data Loss (minor) 48 | . . . . . 2 1 1 . . . 4 . 1 . . . . 5 1 . . . . . 1 4 1 . 1 3 16 . 7 Data Loss (major) 20 | . . . . . 1 . . . . . 2 . . . . . . 2 1 . 1 . . . . . . 1 2 . 7 . 3 Misfires 9 | . . . . . 1 3 . . . . 1 . . . 1 . . 1 . . . . . . . . . . . . 1 . 1 Alerts 12 | . . . . . . 1 . . . . 1 . . . . . . 2 . . 1 1 . . . . . . . 1 4 . 1 Misdirections 6 | . . . . . . . . . . . . . . . . . . . . . . . . . . . . . . . 6 . . Weapon Failures 51 | . . . . . . . . . . . 1 . . . . . . 3 . . . 1 . . 1 . . . . 1 41 2 1 Overload Shots 7 | . . . . . . . . . . . . . . . . . . . . . . . . . . . . . . . 5 . 2 Overflow Damage 28961 | . . 125 310 214 2000 309 226 . 476 143 2031 258 185 . 358 572 . 1654 199 101 2473 244 1741 . 883 724 109 620 342 1049 4079 811 6725 Projectiles 27388 | . . 125 310 214 1647 309 226 . 218 143 1977 258 185 . 358 572 . 1554 199 101 2473 244 1663 . 850 724 109 620 342 1049 3718 769 6431 Explosions 1464 | . . . . . 353 . . . 258 . 54 . . . . . . 100 . . . . 78 . 33 . . . . . 252 42 294 Melee 109 | . . . . . . . . . . . . . . . . . . . . . . . . . . . . . . . 109 . . Knockbacks . | . . . . . . . . . . . . . . . . . . . . . . . . . . . . . . . . . . Impact . | . . . . . . . . . . . . . . . . . . . . . . . . . . . . . . . . . . Kinetic . | . . . . . . . . . . . . . . . . . . . . . . . . . . . . . . . . . . Secondary . | . . . . . . . . . . . . . . . . . . . . . . . . . . . . . . . . . . Self-Inflicted Damage 984 | 4 . . . . 47 . . . 444 . . . . . . . . . . . . . . . . . . . . 182 267 . 40 Shots 12 | 1 . . . . 1 . . . 1 . . . . . . . . . . . . . . . . . . . . 2 6 . 1 Rammed . | . . . . . . . . . . . . . . . . . . . . . . . . . . . . . . . . . . Targets Rammed . | . . . . . . . . . . . . . . . . . . . . . . . . . . . . . . . . . . Kicked . | . . . . . . . . . . . . . . . . . . . . . . . . . . . . . . . . . . Crushed . | . . . . . . . . . . . . . . . . . . . . . . . . . . . . . . . . . . Highest Temperature 383 | 7 168 18 50 51 298 168 261 261 93 10 196 47 . . 225 . . 166 281 248 154 12 12 . 254 174 40 . 6 21 228 123 383 Average Temperature 44 | 7 35 18 17 19 42 39 52 71 32 6 47 47 . . 99 . . 47 82 69 25 12 11 . 44 62 18 . 4 11 82 19 42 Received Heat Transfer 6256 | . 450 207 567 189 798 45 9 . 72 132 361 98 30 . 120 54 . 284 25 6 438 15 373 . 144 166 7 36 67 166 725 125 547 Effects 5 | . . . . . 3 . . . . . . . . . . . . . . . . . . . . . . . . . . . 2 Energy Bleed 2 | . . . . . 2 . . . . . . . . . . . . . . . . . . . . . . . . . . . . Interference 3 | . . . . . 1 . . . . . . . . . . . . . . . . . . . . . . . . . . . 2 Siege Activations . | . . . . . . . . . . . . . . . . . . . . . . . . . . . . . . . . . . Martial Activations . | . . . . . . . . . . . . . . . . . . . . . . . . . . . . . . . . . . Shielding Activations . | . . . . . . . . . . . . . . . . . . . . . . . . . . . . . . . . . . Robots Disrupted 45 | . . . . . . . . . . . . . . . . . . . . . . . . . . . . . . 2 34 3 6 Combat Hostiles 33 | . . . . . . . . . . . . . . . . . . . . . . . . . . . . . . 1 24 3 5 Robots Corrupted 109 | . . . . . . . . . . . . . . . . . . . . . . . . . . . . . . . 61 . 48 Combat Hostiles 103 | . . . . . . . . . . . . . . . . . . . . . . . . . . . . . . . 57 . 46 Parts Fried 235 | . . . . . . . . . . . 3 . . . . . . . . . 2 . . . . 2 . . 2 1 138 6 81 Impact Corruptions . | . . . . . . . . . . . . . . . . . . . . . . . . . . . . . . . . . . Robots Melted 311 | . 2 5 6 5 23 2 . . 1 4 16 2 . . 4 3 . 18 2 . 28 2 15 1 2 6 1 2 7 18 61 12 63 Combat Hostiles 281 | . 2 5 3 5 23 2 . . 1 4 13 2 . . 4 3 . 14 2 . 28 2 11 1 1 6 1 2 7 17 52 12 58 Parts Melted 534 | . 9 10 5 6 41 1 . . 6 5 23 7 . . 3 5 . 30 2 . 45 2 24 1 2 10 1 4 14 35 106 23 114 Heat Transferred 12073 | . 4749 506 . . 1400 . . . . . 100 . . . . . . 150 . . . . 262 . 275 . . . . 200 1375 100 2956 Parts Sabotaged 3 | . . . . 1 . . . . . . 2 . . . . . . . . . . . . . . . . . . . . . . Parts Stolen . | . . . . . . . . . . . . . . . . . . . . . . . . . . . . . . . . . . Parts Stripped . | . . . . . . . . . . . . . . . . . . . . . . . . . . . . . . . . . . Power Chain Reactions 36 | 1 . . . . . . . . . . . . . . . . . . . . . . . . . . . . . 3 17 1 14 Latent Energy Used 8442 | . . . . . . . . . . . . . . . . . . . . . . . . . . . . . . . 4617 260 3565 LE Corruption 145 | . . . . . . . . . . . . . . . . . . . . . . . . . . . . . . . 71 5 69 Alert | -11 -10 -10 -8 -8 -7 -7 -7 -7 -7 -6 -6 -6 -6 -6 -5 -5 -5 -5 -5 -5 -5 -4 -4 -4 -4 -4 -3 -3 -2 -2 -2 -1 -1 ------- Run | Yrd Mat Sub Mat Gar Fac Low Low Zio Dee Pro Fac Low Low Dat Pro Fac Was Fac Upp Upp War Pro Fac Was Fac Arm Res Qua Res Tes Frg Acc Com Maximum Alert Level 5 | . 3 . 4 5 5 . . . . . 5 . . . . 4 2 5 . . . . 5 4 5 5 5 5 5 5 5 5 5 Low Security (%) 3 | 100 27 . 33 . . . . . . . . . . . . . . . . . . . . . . . . . . . . . . Level 1 5 | . 50 . 13 . . . . . . . 7 . . . . 1 80 15 . . . . 8 . . . . . . . . . . Level 2 6 | . 16 . 23 . . . . . . . 6 . . . . 47 19 25 . . . . 12 . . . . . . . . . . Level 3 8 | . 5 . 27 38 10 . . . . . 8 . . . . 42 . 29 . . . . 12 . 3 . . 6 . 10 . . . Level 4 12 | . . . 1 20 21 . . . . . 40 . . . . 8 . 4 . . . . 17 100 66 5 . 41 70 9 . . . Level 5 35 | . . . . 40 1 . . . . . 19 . . . . . . 3 . . . . 49 . 11 94 87 45 29 4 85 8 42 High Security 27 | . . . . . 66 . . . . . 17 . . . . . . 20 . . . . . . 18 . 12 6 . 74 14 91 57 Max Security . | . . . . . . . . . . . . . . . . . . . . . . . . . . . . . . . . . . Sterilizations 4 | . . . 1 . 1 . . . . . 1 . . . . . . 1 . . . . . . . . . . . . . . . Peak Influence 25147 | 20 713 . 1100 2016 5603 . . . . . 3538 . . . . 1193 409 3807 . . . . 3678 1287 2856 3596 2290 2049 1662 4622 13965 11026 25147 Initial 8378 | . 6 . 36 707 1058 . . . . . 234 . . . . 371 409 251 . . . . 296 1287 881 1379 1875 1287 1152 913 2588 8378 7056 Average 5269 | 4 282 . 452 1403 2907 . . . . . 1499 . . . . 792 388 1185 . . . . 1637 1273 1577 2472 2133 1622 1466 3095 7663 9686 14589 Influence Increases 79533 | 20 1157 185 1514 1339 4853 550 110 . . 513 4624 390 115 . 980 1168 . 4869 387 394 5004 585 4018 2 3327 3121 565 1342 751 3819 12324 2768 18739 Destroy 0b10 Robot/C 48700 | . 780 140 1060 780 2740 500 80 . . 420 2860 340 100 . 760 720 . 2900 340 340 4320 520 1760 . 1780 1560 280 680 340 2280 8180 1700 10440 Destroy 0b10 Robot/NC 1610 | 20 15 . 45 . 125 5 20 . . 5 105 . 5 . 15 5 . 100 5 5 75 10 150 . 65 30 10 30 30 105 360 30 240 Destroy Leader 5810 | . 160 . 290 30 462 40 10 . . 40 538 50 10 . 70 160 . 508 40 40 . 40 390 . 370 284 62 84 88 286 944 220 594 Allied During Kill 3936 | . . . . 17 . 5 . . . 48 434 . . . 135 123 . . 2 9 459 . 285 . 68 729 194 396 26 285 348 191 182 Successful Hack 673 | . . . 15 42 41 . . . . . 112 . . . . 40 . 68 . . . . 78 . 50 62 . . . 5 88 21 51 Select Force Hacks 110 | . 110 . . . . . . . . . . . . . . . . . . . . . . . . . . . . . . . . Disable Machine 3675 | . 30 . 30 45 750 . . . . . 285 . . . . 60 . 420 . . . . 645 . 420 150 . 90 60 150 435 45 60 Anti-Garrison Action 1050 | . . . . 250 150 . . . . . . . . . . . . . . . . . 150 . . . . . . 150 150 150 50 Destroy Structure 4624 | . 2 . 14 100 345 . . . . . 125 . . . . 30 . 768 . . . . 440 2 304 66 4 2 192 438 934 96 762 Partial Spotted 630 | . . . 15 . 45 . . . . . 30 . . . . 15 . 45 . . . . 30 . 105 30 15 60 15 15 90 . 120 Lose Combat Pursuer 8715 | . 60 45 45 75 195 . . . . . 135 . . . . 15 . 60 . . 150 15 90 . 165 210 . . . 105 795 315 6240 Influence Decreases 54386 | 10 466 815 497 411 1266 2428 907 2928 . 140 1459 1490 604 1949 390 589 810 1421 1626 649 2875 4557 810 2421 1770 2365 1847 1583 1175 842 2961 5707 4618 Entered New Map 41289 | . 4 337 35 381 958 2074 709 2928 . . 139 1310 464 1949 . 219 760 108 1410 489 2313 4442 174 2391 378 1437 1697 1003 897 712 2014 5587 3970 Time Decay 8397 | 10 462 478 452 . 278 334 198 . . 140 580 180 140 . 310 270 50 553 206 160 432 115 386 30 392 318 110 140 238 90 757 20 568 Lost Part 90 | . . . 10 . 20 . . . . . 20 . . . . . . . 10 . 10 . . . . . . . . . . . 20 Lost Ally 1760 | . . . . 30 10 20 . . . . 120 . . . 80 100 . 10 . . 120 . 250 . 100 310 40 140 40 40 190 100 60 Purge Threat 2850 | . . . . . . . . . . . 600 . . . . . . 750 . . . . . . 900 300 . 300 . . . . . Squads Dispatched 409 | . 12 . 13 . 45 . . . . 1 35 . . . 3 4 . 33 . . . . 19 . 23 9 3 12 4 33 90 28 42 Investigation 56 | . 11 . 7 . 2 . . . . . 5 . . . 3 1 . 7 . . . . 4 . 5 3 2 2 2 . 2 . . Extermination 40 | . . . . . 2 . . . . . 5 . . . . 2 . 5 . . . . 2 . 3 2 1 1 . 1 12 . 4 Reinforcement 58 | . 1 . 1 . 2 . . . . . 10 . . . . 1 . 9 . . . . 5 . 3 2 . 4 2 7 5 4 2 Assault 236 | . . . 1 . 35 . . . . 1 14 . . . . . . 9 . . . . 7 . 10 2 . 2 . 24 71 24 36 Garrison 19 | . . . 4 . 4 . . . . . 1 . . . . . . 3 . . . . 1 . 2 . . 3 . 1 . . . Intercept . | . . . . . . . . . . . . . . . . . . . . . . . . . . . . . . . . . . Searches Triggered . | . . . . . . . . . . . . . . . . . . . . . . . . . . . . . . . . . . Unchained Authorized 5 | . . . . . . . . . . . 1 . . . . 1 . 2 . . . . 1 . . . . . . . . . . Data Miner Redirects 5 | . . . . . . . . . . . . . . . . . . . . . . . . . . 1 . . . . 4 . . Construction Impeded 4 | . . . . . . . . . . . . . . . . . . . . . . . . . . . . . 1 1 1 1 . Haulers Reinforced 4 | . . . . . 1 . . . . . 1 . . . . . . . . . . . 1 . . . . . 1 . . . . Active Scanning Responses . | . . . . . . . . . . . . . . . . . . . . . . . . . . . . . . . . . . Cargo Convoy Interrupts 3 | . . . . . . . . . . . 1 . . . . . . 1 . . . . . . 1 . . . . . . . . Stealth | -11 -10 -10 -8 -8 -7 -7 -7 -7 -7 -6 -6 -6 -6 -6 -5 -5 -5 -5 -5 -5 -5 -4 -4 -4 -4 -4 -3 -3 -2 -2 -2 -1 -1 --------- Run | Yrd Mat Sub Mat Gar Fac Low Low Zio Dee Pro Fac Low Low Dat Pro Fac Was Fac Upp Upp War Pro Fac Was Fac Arm Res Qua Res Tes Frg Acc Com Distress Signals 80 | . 2 . 8 . 2 . . . . . 3 . . . 1 2 . 9 . . . . 8 . 4 8 2 1 9 1 3 2 15 Communications Jammed . | . . . . . . . . . . . . . . . . . . . . . . . . . . . . . . . . . . Distress Signals . | . . . . . . . . . . . . . . . . . . . . . . . . . . . . . . . . . . Times Spotted 3402 | . 56 25 81 44 199 25 3 . 19 23 159 14 4 . 40 47 6 181 16 16 274 26 192 1 122 94 19 29 37 124 547 133 846 Peak Tracking Total 85 | . 7 4 8 7 14 7 2 . 4 7 13 4 3 . 10 7 6 10 7 4 20 12 25 1 23 15 6 6 11 18 45 17 85 Tactical Retreats 155 | . 2 2 3 2 5 . . . . . 7 . . . . 1 . 4 . . 7 1 12 . 4 6 . . 2 3 26 8 60 Traps | -11 -10 -10 -8 -8 -7 -7 -7 -7 -7 -6 -6 -6 -6 -6 -5 -5 -5 -5 -5 -5 -5 -4 -4 -4 -4 -4 -3 -3 -2 -2 -2 -1 -1 ------- Run | Yrd Mat Sub Mat Gar Fac Low Low Zio Dee Pro Fac Low Low Dat Pro Fac Was Fac Upp Upp War Pro Fac Was Fac Arm Res Qua Res Tes Frg Acc Com Traps Triggered 35 | . 1 2 . 1 1 . . . . . 4 . . . 2 1 . 2 . . . . 2 . 2 . . 2 . 1 11 1 2 Indirectly . | . . . . . . . . . . . . . . . . . . . . . . . . . . . . . . . . . . Trap Hack Attempts . | . . . . . . . . . . . . . . . . . . . . . . . . . . . . . . . . . . Triggered . | . . . . . . . . . . . . . . . . . . . . . . . . . . . . . . . . . . Disarmed 4 | . . . . . . . . . . . 4 . . . . . . . . . . . . . . . . . . . . . . Reprogrammed . | . . . . . . . . . . . . . . . . . . . . . . . . . . . . . . . . . . Reused . | . . . . . . . . . . . . . . . . . . . . . . . . . . . . . . . . . . Traps Extracted . | . . . . . . . . . . . . . . . . . . . . . . . . . . . . . . . . . . Installed . | . . . . . . . . . . . . . . . . . . . . . . . . . . . . . . . . . . Triggered . | . . . . . . . . . . . . . . . . . . . . . . . . . . . . . . . . . . Machines | -11 -10 -10 -8 -8 -7 -7 -7 -7 -7 -6 -6 -6 -6 -6 -5 -5 -5 -5 -5 -5 -5 -4 -4 -4 -4 -4 -3 -3 -2 -2 -2 -1 -1 ---------- Run | Yrd Mat Sub Mat Gar Fac Low Low Zio Dee Pro Fac Low Low Dat Pro Fac Was Fac Upp Upp War Pro Fac Was Fac Arm Res Qua Res Tes Frg Acc Com Machines Disabled 325 | . 2 . 2 9 62 . . 4 3 . 46 . . . 3 4 . 39 . . 3 1 45 . 28 10 . 6 4 11 32 4 7 Max in Single Turn 12 | . 1 . 1 1 10 . . 1 1 . 8 . . . 1 1 . 5 . . 1 1 4 . 12 1 . 1 . 1 5 1 2 Garrison Access 15 | . . . . . 2 . . . . . 1 . . . . 1 . 2 . . . . 3 . 2 . 1 . . 1 1 1 . Garrison Relay 4 | . . . . 4 . . . . . . . . . . . . . . . . . . . . . . . . . . . . . Phase Generator 1 | . . . . . . . . . . . . . . . . . . . . . . . . . . . . . . . . . 1 Energy Cycler 1 | . . . . . . . . . . . . . . . . . . . . . . . . . . 1 . . . . . . . Machines Repaired . | . . . . . . . . . . . . . . . . . . . . . . . . . . . . . . . . . . Machines Dismantled . | . . . . . . . . . . . . . . . . . . . . . . . . . . . . . . . . . . Machines Sabotaged 1 | . 1 . . . . . . . . . . . . . . . . . . . . . . . . . . . . . . . . Overloaded Fab Kills . | . . . . . . . . . . . . . . . . . . . . . . . . . . . . . . . . . . Hacking | -11 -10 -10 -8 -8 -7 -7 -7 -7 -7 -6 -6 -6 -6 -6 -5 -5 -5 -5 -5 -5 -5 -4 -4 -4 -4 -4 -3 -3 -2 -2 -2 -1 -1 --------- Run | Yrd Mat Sub Mat Gar Fac Low Low Zio Dee Pro Fac Low Low Dat Pro Fac Was Fac Upp Upp War Pro Fac Was Fac Arm Res Qua Res Tes Frg Acc Com Machines Accessed 182 | . 10 1 11 4 7 1 3 . . . 19 . . 2 2 10 . 19 . 1 6 1 16 . 23 12 4 4 2 4 15 1 4 Terminals 123 | . 7 . 8 4 6 . . . . . 12 . . . . 9 . 14 . . . 1 9 . 18 9 3 3 1 2 13 . 4 Fabricators 23 | . . . . . . . . . . . 4 . . . 1 . . 3 . . . . 5 . 3 3 . . 1 1 1 1 . Repair Stations 2 | . 1 . 1 . . . . . . . . . . . . . . . . . . . . . . . . . . . . . . Recycling Units 3 | . 2 . . . . . . . . . . . . . 1 . . . . . . . . . . . . . . . . . . Scanalyzers 2 | . . . 1 . . . . . . . 1 . . . . . . . . . . . . . . . . . . . . . . Garrison Access 15 | . . . 1 . 1 . . . . . 2 . . . . 1 . 2 . . . . 2 . 2 . 1 1 . 1 1 . . Total Hacks 521 | . 14 1 27 6 16 1 5 . . . 65 . . 13 7 24 . 53 . 1 21 5 48 . 87 45 10 7 6 12 38 2 7 Successful 270 | . 10 1 15 3 6 1 5 . . . 30 . . 13 2 12 . 25 . 1 21 5 27 . 43 20 1 3 2 5 15 1 3 Failed 251 | . 4 . 12 3 10 . . . . . 35 . . . 5 12 . 28 . . . . 21 . 44 25 9 4 4 7 23 1 4 Catastrophic 50 | . . . 1 2 . . . . . . 2 . . . 1 2 . 9 . . . . 4 . 10 5 3 1 2 1 7 . . Database Lockouts . | . . . . . . . . . . . . . . . . . . . . . . . . . . . . . . . . . . Manual 268 | . 14 . 23 . 10 . . . . . 33 . . . 4 17 . 27 . . . . 26 . 47 29 . . . 2 30 . 6 Terminals 354 | . 10 . 23 6 15 . . . . . 42 . . . . 23 . 40 . . . 5 26 . 71 29 9 5 3 7 33 . 7 Fabricators 82 | . . . . . . . . . . . 16 . . . 3 . . 8 . . . . 19 . 10 16 . . 3 3 2 2 . Repair Stations 2 | . 1 . 1 . . . . . . . . . . . . . . . . . . . . . . . . . . . . . . Recycling Units 7 | . 3 . . . . . . . . . . . . . 4 . . . . . . . . . . . . . . . . . . Scanalyzers 3 | . . . 2 . . . . . . . 1 . . . . . . . . . . . . . . . . . . . . . . Garrison Access 31 | . . . 1 . 1 . . . . . 6 . . . . 1 . 5 . . . . 3 . 6 . 1 2 . 2 3 . . Terminal Hacks 111 | . . 1 1 3 . 1 5 . . . 10 . . 13 . 3 . 10 . 1 21 5 4 . 16 4 . 3 1 3 5 . 1 Record 19 | . . . . . . . 3 . . . . . . . . . . . . . 10 5 . . . . . . . . . . 1 Part Schematic 13 | . . . . . . . . . . . . . . 9 . . . 1 . . . . . . . . . . . . 3 . . Robot Schematic 1 | . . . . . . . . . . . . . . 1 . . . . . . . . . . . . . . . . . . . Robot Analysis 1 | . . . . . . . . . . . . . . . . . . . . . . . 1 . . . . . . . . . . Prototype ID Bank 19 | . . . . . . . . . . . 2 . . 3 . 1 . 1 . . 11 . . . . . . . . . 1 . . Open Door 5 | . . . . . . 1 2 . . . . . . . . . . . . 1 . . . . . . . 1 . . . . . Level Access Points 4 | . . . . . . . . . . . . . . . . . . 1 . . . . 1 . 1 . . . . . 1 . . Branch Access Points 5 | . . . . . . . . . . . 1 . . . . 1 . . . . . . 1 . 1 . . . 1 . . . . Emergency Access Points 1 | . . . . 1 . . . . . . . . . . . . . . . . . . . . . . . . . . . . . Machine Index 1 | . . . . . . . . . . . . . . . . 1 . . . . . . . . . . . . . . . . . Terminal Index 2 | . . . . . . . . . . . . . . . . . . . . . . . . . 1 . . . . 1 . . . Fabricator Index 1 | . . . . . . . . . . . . . . . . . . 1 . . . . . . . . . . . . . . . Alert Level 8 | . . . 1 . . . . . . . . . . . . . . 1 . . . . 1 . 3 2 . . . . . . . Unreport Threat 19 | . . . . . . . . . . . 4 . . . . . . 5 . . . . . . 6 2 . 2 . . . . . Locate Traps 3 | . . . . . . . . . . . 1 . . . . . . . . . . . . . 1 . . . . 1 . . . Disarm Traps 1 | . . . . . . . . . . . 1 . . . . . . . . . . . . . . . . . . . . . . Security Status 1 | . . . . . . . . . . . . . . . . . . . . . . . . . 1 . . . . . . . . Assault Status 2 | . . . . . . . . . . . 1 . . . . . . . . . . . . . . . . . . 1 . . . Recall Investigation 1 | . . . . . . . . . . . . . . . . . . . . . . . . . 1 . . . . . . . . Zone Layout 1 | . . . . . . . . . . . . . . . . . . . . . . . . . 1 . . . . . . . . Garrison Registry 1 | . . . . 1 . . . . . . . . . . . . . . . . . . . . . . . . . . . . . Patrol Navigation 1 | . . . . 1 . . . . . . . . . . . . . . . . . . . . . . . . . . . . . Proto ID Catalog 1 | . . 1 . . . . . . . . . . . . . . . . . . . . . . . . . . . . . . . Fabricator Hacks 38 | . . . . . . . . . . . 7 . . . 2 . . 3 . . . . 7 . 6 8 . . 1 1 2 1 . Network Status 4 | . . . . . . . . . . . 1 . . . . . . 1 . . . . 1 . . 1 . . . . . . . Load Schematic 18 | . . . . . . . . . . . 3 . . . 1 . . 1 . . . . 3 . 3 4 . . 1 1 1 . . Build 16 | . . . . . . . . . . . 3 . . . 1 . . 1 . . . . 3 . 3 3 . . . . 1 1 . Repair Station Hacks . | . . . . . . . . . . . . . . . . . . . . . . . . . . . . . . . . . . Recycling Unit Hacks . | . . . . . . . . . . . . . . . . . . . . . . . . . . . . . . . . . . Scanalyzer 2 | . . . 1 . . . . . . . 1 . . . . . . . . . . . . . . . . . . . . . . Retrieve Study 2 | . . . 1 . . . . . . . 1 . . . . . . . . . . . . . . . . . . . . . . Garrison Access Hacks 11 | . . . 1 . 1 . . . . . 1 . . . . 1 . 2 . . . . 2 . 2 . 1 . . . . . . Unlock Access 1 | . . . 1 . . . . . . . . . . . . . . . . . . . . . . . . . . . . . . Seal Access 10 | . . . . . 1 . . . . . 1 . . . . 1 . 2 . . . . 2 . 2 . 1 . . . . . . Unauthorized Hacks 108 | . 10 . 12 . 5 . . . . . 11 . . . . 8 . 10 . . . . 14 . 19 8 . . . 1 8 . 2 Terminals 94 | . 7 . 11 . 5 . . . . . 9 . . . . 8 . 9 . . . . 9 . 18 7 . . . 1 8 . 2 Assimilate 19 | . . . 2 . 2 . . . . . 2 . . . . 2 . 1 . . . . 1 . 6 2 . . . . 1 . . Botnet 60 | . . . 3 . 2 . . . . . 7 . . . . 6 . 8 . . . . 8 . 11 5 . . . 1 7 . 2 Disrupt 1 | . . . 1 . . . . . . . . . . . . . . . . . . . . . . . . . . . . . . Operators 3 | . . . 1 . 1 . . . . . . . . . . . . . . . . . . . 1 . . . . . . . . Sabotage 11 | . 7 . 4 . . . . . . . . . . . . . . . . . . . . . . . . . . . . . . Fabricators 10 | . . . . . . . . . . . 2 . . . . . . 1 . . . . 5 . 1 1 . . . . . . . Prioritize 5 | . . . . . . . . . . . 1 . . . . . . . . . . . 3 . . 1 . . . . . . . Liberate 1 | . . . . . . . . . . . . . . . . . . . . . . . 1 . . . . . . . . . . Haulers 4 | . . . . . . . . . . . 1 . . . . . . 1 . . . . 1 . 1 . . . . . . . . Repair Stations 2 | . 1 . 1 . . . . . . . . . . . . . . . . . . . . . . . . . . . . . . Patch 2 | . 1 . 1 . . . . . . . . . . . . . . . . . . . . . . . . . . . . . . Recycling Units 2 | . 2 . . . . . . . . . . . . . . . . . . . . . . . . . . . . . . . . Tunnel 2 | . 2 . . . . . . . . . . . . . . . . . . . . . . . . . . . . . . . . Scanalyzers . | . . . . . . . . . . . . . . . . . . . . . . . . . . . . . . . . . . Garrison Access . | . . . . . . . . . . . . . . . . . . . . . . . . . . . . . . . . . . Data Cores Recovered 18 | . 1 . 2 . 1 . . . . . . . . . . 1 . 1 . . . . 1 . . 2 . 3 . 1 5 . . Used 5 | . . . 2 . 1 . . . . . . . . . . 1 . . . . . . . . . . . . . . 1 . . Hacking Detections 128 | . . . 5 2 6 . . . . . 16 . . . 2 8 . 17 . . . . 13 . 18 10 3 3 2 4 15 . 4 Full Trace Events 36 | . . . 2 1 2 . . . . . 4 . . . 2 1 . 5 . . . . 4 . 5 3 2 1 2 . 2 . . Feedback Events 3 | . . . . . . . . . . . 1 . . . . . . . . . . . . . . 1 1 . . . . . . Corruption 3 | . . . . . . . . . . . 1 . . . . . . . . . . . . . . 1 1 . . . . . . Feedback Blocked . | . . . . . . . . . . . . . . . . . . . . . . . . . . . . . . . . . . Robot Schematics Acquired 56 | . . . . . . . . 3 . . 51 . . 1 . . . . . . . . . . . . . . . . 1 . . Robots Built 30 | . . . . . . . . . . . 6 . . . 2 . . . . . . . 6 . 6 6 . . . . . 4 . Authchips 2 | . . . . . . . . . . . . . . . . . . . . . . . . . . 2 . . . . . . . Time 1500 | . . . . . . . . . . . 444 . . . 111 . . . . . . . 357 . 306 255 . . . . . 27 . Total Robot Build Rating 220 | . . . . . . . . . . . 54 . . . 18 . . . . . . . 48 . 48 48 . . . . . 4 . Part Schematics Acquired 50 | . . . . . . . . 15 . . . . . 9 . . . 1 . . . . . . . . . 11 . 4 10 . . Parts Built 4 | . . . . . . . . . . . . . . . . . . 2 . . . . . . . . . . . . 2 . . Authchips . | . . . . . . . . . . . . . . . . . . . . . . . . . . . . . . . . . . Time 93 | . . . . . . . . . . . . . . . . . . 58 . . . . . . . . . . . . 35 . . Total Part Build Rating 26 | . . . . . . . . . . . . . . . . . . 14 . . . . . . . . . . . . 12 . . Part Studies Acquired 2 | . . . 1 . . . . . . . 1 . . . . . . . . . . . . . . . . . . . . . . Parts Repaired . | . . . . . . . . . . . . . . . . . . . . . . . . . . . . . . . . . . Time . | . . . . . . . . . . . . . . . . . . . . . . . . . . . . . . . . . . Parts Recycled . | . . . . . . . . . . . . . . . . . . . . . . . . . . . . . . . . . . Recycled Matter . | . . . . . . . . . . . . . . . . . . . . . . . . . . . . . . . . . . Retrieved Matter . | . . . . . . . . . . . . . . . . . . . . . . . . . . . . . . . . . . Retrieved Components . | . . . . . . . . . . . . . . . . . . . . . . . . . . . . . . . . . . Parts Scanalyzed . | . . . . . . . . . . . . . . . . . . . . . . . . . . . . . . . . . . Part Schematics Acquired . | . . . . . . . . . . . . . . . . . . . . . . . . . . . . . . . . . . Parts Damaged . | . . . . . . . . . . . . . . . . . . . . . . . . . . . . . . . . . . Bothacking | -11 -10 -10 -8 -8 -7 -7 -7 -7 -7 -6 -6 -6 -6 -6 -5 -5 -5 -5 -5 -5 -5 -4 -4 -4 -4 -4 -3 -3 -2 -2 -2 -1 -1 ------------ Run | Yrd Mat Sub Mat Gar Fac Low Low Zio Dee Pro Fac Low Low Dat Pro Fac Was Fac Upp Upp War Pro Fac Was Fac Arm Res Qua Res Tes Frg Acc Com Used RIF Installer . | . . . . . . . . . . . . . . . . . . . . . . . . . . . . . . . . . . Robots Hacked 1 | . . . . . . . . . . . . . . . . . . . . . . . . . . . . . 1 . . . . Non-combat . | . . . . . . . . . . . . . . . . . . . . . . . . . . . . . . . . . . Combat . | . . . . . . . . . . . . . . . . . . . . . . . . . . . . . . . . . . Robot Hacks Applied . | . . . . . . . . . . . . . . . . . . . . . . . . . . . . . . . . . . Manual 1 | . . . . . . . . . . . . . . . . . . . . . . . . . . . . . 1 . . . . Relay Couplers Released 15 | . . . . 7 . . . . . . 2 . . . . . . . . . . . 1 . 1 . . . . 2 2 . . Machine Destruction 13 | . . . . 7 . . . . . . 2 . . . . . . . . . . . . . . . . . . 2 2 . . Programmers 2 | . . . . . . . . . . . . . . . . . . . . . . . 1 . 1 . . . . . . . . Fabnet Peak Effective % . | . . . . . . . . . . . . . . . . . . . . . . . . . . . . . . . . . . Robots Rewired 63 | . . . . 2 . 1 . . . 1 1 . . . 11 . . . 2 . 5 . . . . 14 . . . 1 17 3 5 Allies Hacked 19 | . . . . . . . . . . . 1 . . . . 1 . . . . . . 5 . 3 1 2 5 . . 1 . . Hacks Repelled 1 | . . . . . . . . . . . . . . . . . . . . . . . . . 1 . . . . . . . . Allies | -11 -10 -10 -8 -8 -7 -7 -7 -7 -7 -6 -6 -6 -6 -6 -5 -5 -5 -5 -5 -5 -5 -4 -4 -4 -4 -4 -3 -3 -2 -2 -2 -1 -1 -------- Run | Yrd Mat Sub Mat Gar Fac Low Low Zio Dee Pro Fac Low Low Dat Pro Fac Was Fac Upp Upp War Pro Fac Was Fac Arm Res Qua Res Tes Frg Acc Com Total Allies 129 | . . . 1 4 1 2 . . . 1 9 . . . 13 2 . 1 2 . 5 . 15 . 13 21 2 5 1 1 18 7 5 Largest Group 12 | . . . 1 2 1 1 1 1 1 2 3 . . . 9 8 . 1 2 2 7 . 12 . 8 8 9 9 4 2 6 2 4 Highest-Rated Group 730 | . . . 10 62 26 99 99 99 99 119 267 . . . 440 353 . 26 59 59 337 . 730 . 565 589 619 609 416 413 375 183 400 Highest-Rated Ally 369 | . . . 10 31 26 99 99 99 99 99 99 . . . 89 89 . 26 30 30 68 . 82 . 82 82 82 82 369 366 110 183 183 Initial Warlord ECA Mod 5 | . . . . . 5 5 5 5 5 4 4 4 4 4 3 3 3 3 3 3 3 . . . . . . . . . . . . Total Orders 55 | . . . 2 1 . . . . . 1 5 . . . . . . . . . 13 . . . 13 3 . . 2 . 12 . 3 STAY 35 | . . . 1 1 . . . . . . 2 . . . . . . . . . 10 . . . 8 2 . . 1 . 8 . 2 ROAM 1 | . . . . . . . . . . . 1 . . . . . . . . . . . . . . . . . . . . . . FOLLOW 17 | . . . 1 . . . . . . . 2 . . . . . . . . . 3 . . . 5 1 . . 1 . 3 . 1 GUARD 1 | . . . . . . . . . . 1 . . . . . . . . . . . . . . . . . . . . . . . AID 1 | . . . . . . . . . . . . . . . . . . . . . . . . . . . . . . . 1 . . Ally Attacks 782 | . . . . 5 . 3 . . 9 5 138 . . . 54 21 . . . . 39 . 79 . 9 121 30 87 23 47 25 21 66 Total Damage 31065 | . . . . 44 . 36 . . 367 174 5250 . . . 744 518 . . . . 1803 . 2804 . 364 3999 607 2433 1125 6810 831 626 2530 Kills 180 | . . . . 1 . 1 . . 2 1 35 . . . 4 4 . . . . 15 . 19 . 5 19 3 16 10 36 3 2 4 Allies Corrupted 10 | . . . . . . . . . . . 1 . . . . 2 . . . . . . . . 1 1 1 . . 1 2 . 1 Allies Melted 1 | . . . . . . . . . . . 1 . . . . . . . . . . . . . . . . . . . . . . Intel | -11 -10 -10 -8 -8 -7 -7 -7 -7 -7 -6 -6 -6 -6 -6 -5 -5 -5 -5 -5 -5 -5 -4 -4 -4 -4 -4 -3 -3 -2 -2 -2 -1 -1 ------- Run | Yrd Mat Sub Mat Gar Fac Low Low Zio Dee Pro Fac Low Low Dat Pro Fac Was Fac Upp Upp War Pro Fac Was Fac Arm Res Qua Res Tes Frg Acc Com Active Infowar (turns) 4876 | 5 1276 2196 537 . . . . . . . . . . . . . . 844 13 2 . . 2 1 . . . . . . . . . Optics 1 | . . . . . . . . . . . . . . . . . . . . . . . 1 . . . . . . . . . . Sensors 1 | . . . . . . . . . . . . . . . . . . . . . . . 1 . . . . . . . . . . Zeronet 857 | . . . . . . . . . . . . . . . . . . 844 13 . . . . . . . . . . . . . . Terrain 3766 | 2 1276 2196 292 . . . . . . . . . . . . . . . . . . . . . . . . . . . . . . Seismic 4014 | 5 1276 2196 537 . . . . . . . . . . . . . . . . . . . . . . . . . . . . . . Jamming 3 | . . . . . . . . . . . . . . . . . . . . 2 . . . 1 . . . . . . . . . Robot Analysis Total 102 | . . . . . . . . . . . 101 . . . . . . . . . . . 1 . . . . . . . . . . Derelict Logs Recovered 17 | . . 2 . . . 3 . 2 . 2 . 1 1 . 2 . . . 2 1 . 1 . . . . . . . . . . . Drone Launches . | . . . . . . . . . . . . . . . . . . . . . . . . . . . . . . . . . . Drone Recoveries . | . . . . . . . . . . . . . . . . . . . . . . . . . . . . . . . . . . Exploration | -11 -10 -10 -8 -8 -7 -7 -7 -7 -7 -6 -6 -6 -6 -6 -5 -5 -5 -5 -5 -5 -5 -4 -4 -4 -4 -4 -3 -3 -2 -2 -2 -1 -1 ------------- Run | Yrd Mat Sub Mat Gar Fac Low Low Zio Dee Pro Fac Low Low Dat Pro Fac Was Fac Upp Upp War Pro Fac Was Fac Arm Res Qua Res Tes Frg Acc Com Turns Passed 33397 | 65 1276 2196 1130 610 1810 753 401 384 756 316 2169 365 291 18 687 592 101 2030 424 335 1869 252 915 78 1138 702 271 309 506 786 4818 667 4377 Spaces Moved 57670 | 41 766 2334 1494 930 2965 1282 959 918 705 792 4319 1004 1106 79 1483 1617 297 4540 995 744 2536 923 2233 311 3037 1874 493 1227 964 1686 7025 809 5182 Core 3 | 3 . . . . . . . . . . . . . . . . . . . . . . . . . . . . . . . . . Treads . | . . . . . . . . . . . . . . . . . . . . . . . . . . . . . . . . . . Legs . | . . . . . . . . . . . . . . . . . . . . . . . . . . . . . . . . . . Wheels 3502 | 38 766 2334 364 . . . . . . . . . . . . . . . . . . . . . . . . . . . . . . Hover . | . . . . . . . . . . . . . . . . . . . . . . . . . . . . . . . . . . Flight 54165 | . . . 1130 930 2965 1282 959 918 705 792 4319 1004 1106 79 1483 1617 297 4540 995 744 2536 923 2233 311 3037 1874 493 1227 964 1686 7025 809 5182 Fastest Speed 6 | 50 80 80 26 26 23 23 23 23 23 23 23 23 23 23 23 23 23 23 24 24 20 20 20 20 18 18 18 18 18 19 6 7 7 Average Speed 24 | 96 91 80 39 26 23 23 23 23 23 23 23 23 23 23 23 23 23 25 24 24 20 20 20 20 19 18 18 18 19 19 16 13 13 Slowest Speed 100 | 100 100 95 95 26 26 23 23 23 23 23 94 23 23 23 26 23 24 82 26 24 80 20 20 20 20 18 18 18 86 19 78 14 19 Overloaded Moves 378 | . . . . . . . . . . . . . . . . . . . . . . . . . . . . . . . 37 24 317 Propulsion Burnouts . | . . . . . . . . . . . . . . . . . . . . . . . . . . . . . . . . . . Robots Hopped 375 | . . . 16 . 16 . 3 . 1 1 43 1 . . 4 16 . 62 . . 17 . 46 . 35 12 5 24 11 9 33 2 18 Potential Cave-ins 13 | . . 2 . . . . . . . . . . . . . 3 . . . . 6 . . . . . . . . . . . 2 Cave-ins Triggered 1 | . . . . . . . . . . . . . . . . . . . . . . . . . . . . . . . . . 1 Exploration Rate (%) 76 | 4 94 96 97 84 60 98 95 85 82 95 84 98 98 68 93 47 99 85 97 91 95 98 57 94 64 68 15 94 27 97 77 12 58 Regions Visited 33 Branch Regions 19 Pre-discovered Areas 13 | . 2 2 . . . 1 1 5 . 1 . . 1 . . . . . . . . . . . . . . . . . . . . Known Exits Taken 23 | . . . 1 . 1 1 1 1 1 1 1 1 1 1 1 . . 1 1 1 . 1 . . 1 1 . 1 1 1 1 1 . Unknown Exits Taken 5 | 1 1 1 . . . . . . . . . . . . . . . . . . 1 . . . . . 1 . . . . . . Scrap Searched 51 | . . 15 . . . 4 4 4 . 4 . 5 2 . 4 . . . 3 3 . 3 . . . . . . . . . . . Spaces Dug 100 | . . 7 1 . 3 . . . . . 7 1 . . . 1 . 5 . 2 2 3 5 . 15 10 . . . 1 27 . 10 Terrain Destroyed 2190 | . . 19 14 5 368 4 . . 15 6 79 3 1 . 3 8 . 412 1 5 22 8 264 1 162 20 2 1 7 28 388 36 308 Melee . | . . . . . . . . . . . . . . . . . . . . . . . . . . . . . . . . . . Projectile 435 | . . 19 14 5 22 4 . . 4 6 25 3 1 . 3 8 . 34 1 5 22 8 27 1 25 20 2 1 7 9 63 19 77 AOE 1736 | . . . . . 346 . . . 11 . 54 . . . . . . 378 . . . . 237 . 137 . . . . 19 313 14 227 Terrain Rammed . | . . . . . . . . . . . . . . . . . . . . . . . . . . . . . . . . . . Walls Destroyed . | . . . . . . . . . . . . . . . . . . . . . . . . . . . . . . . . . . Machines Disabled . | . . . . . . . . . . . . . . . . . . . . . . . . . . . . . . . . . . Actions | -11 -10 -10 -8 -8 -7 -7 -7 -7 -7 -6 -6 -6 -6 -6 -5 -5 -5 -5 -5 -5 -5 -4 -4 -4 -4 -4 -3 -3 -2 -2 -2 -1 -1 --------- Run | Yrd Mat Sub Mat Gar Fac Low Low Zio Dee Pro Fac Low Low Dat Pro Fac Was Fac Upp Upp War Pro Fac Was Fac Arm Res Qua Res Tes Frg Acc Com Total 75831 | 55 1146 2550 1910 1216 3869 1711 1127 1086 1276 899 5275 1099 1133 78 1784 1780 325 5328 1178 898 3901 992 2679 325 3564 2237 670 1294 1283 2161 10683 1386 8933 Wait 8345 | . 217 54 202 78 378 320 153 158 519 24 539 35 2 . 127 69 28 214 143 116 602 10 56 . 269 127 130 15 156 92 1520 121 1871 Move 56922 | 40 765 2333 1461 927 2932 1281 952 917 702 789 4235 1001 1105 78 1476 1586 296 4417 994 743 2511 922 2146 310 2967 1851 482 1179 943 1669 6960 804 5148 Hop 340 | . . . 16 . 16 . 3 . 1 1 40 1 . . 2 15 . 60 . . 7 . 41 . 34 10 5 23 9 7 31 2 16 Pick Up 73 | . 2 . 3 . 3 1 . 2 2 . 2 2 1 . 2 . . 1 1 . 1 . 1 . 1 1 . 1 . 2 24 6 14 Fast Attach 77 | 7 1 4 8 1 8 1 1 1 1 . 9 . . . . . . 4 . . 6 1 . . . 2 . 1 1 3 12 1 4 Attach 11 | . . . . . . 3 . . . . 2 1 . . 1 . . . 1 . . . 1 . . . 1 . 1 . . . . Detach 8 | . . . . . . 3 . . . . . . . . . . . 2 . . . . . . . . . . 2 . 1 . . Swap 140 | . 4 1 4 . 3 . . 3 9 . 6 1 . . . 2 1 13 . 2 13 . 6 2 10 1 . 1 5 8 27 2 16 Drop 113 | . 3 3 8 . 5 2 . 1 4 . 7 . 1 . 1 1 . 9 . . 6 . . . 5 . . 1 1 6 27 5 17 Fire 6524 | 8 103 104 138 99 364 51 14 4 34 46 318 35 16 . 68 85 . 418 28 32 500 46 303 4 212 143 24 48 126 266 1267 290 1330 Melee 37 | . . . . . . . . . . . . 9 . . 3 1 . 1 . 2 5 1 2 . 2 1 1 . . . 9 . . Ram . | . . . . . . . . . . . . . . . . . . . . . . . . . . . . . . . . . . Kick . | . . . . . . . . . . . . . . . . . . . . . . . . . . . . . . . . . . Crush . | . . . . . . . . . . . . . . . . . . . . . . . . . . . . . . . . . . Escape Stasis 162 | . . . . 15 . . . . . . . . . . . . . . . . . . 15 . . . . . . 10 71 33 18 Rewire 458 | . . . . 54 . 6 . . . 3 2 . . . 59 . . . 3 . 59 . 2 . . 57 2 3 . 4 165 10 29 Trap . | . . . . . . . . . . . . . . . . . . . . . . . . . . . . . . . . . . Miscellaneous 2621 | . 51 51 70 42 160 43 4 . 4 36 115 14 8 . 45 21 . 189 8 3 191 12 106 9 64 44 25 22 39 94 569 112 470 Route ------- -11/Scrapyard -10/Materials (discovered 6 exits: [*Mat x3] / [*Min x2] / *Sub) -10/Subcaves (discovered 2 exits: *Mat / [*Rec]) -8/Materials (discovered 5 exits: *Fac x3 / [*Sto] / Gar) -8/Garrison (discovered 3 exits: *Fac x3) -7/Factory (discovered 3 exits: *Fac x2 / *Low) -7/Lower Caves -7/Lower Caves (discovered 2 exits: *Fac / *Zio) -7/Zion (discovered 2 exits: *Dee / [*Pro]) -7/Deep Caves -6/Proximity Caves -6/Factory (discovered 4 exits: *Fac x2 / *Low x2) -6/Lower Caves -6/Lower Caves (discovered 2 exits: *Fac / *Dat) -6/Data Miner -5/Proximity Caves -5/Factory (discovered 4 exits: *Fac x2 / *Upp x2) -5/Waste -5/Factory (discovered 6 exits: *Fac x4 / *Upp x2) -5/Upper Caves -5/Upper Caves (discovered 2 exits: *Fac / *War) -5/Warlord -4/Proximity Caves -4/Factory (discovered 9 exits: *Res x4 / *Upp x2 / *Ext x2 / *Arm) -4/Waste -4/Factory (discovered 9 exits: *Res x4 / *Upp x2 / Ext x2 / *Arm) -4/Armory -3/Research (discovered 2 exits: Res / *Qua) -3/Quarantine -2/Research (discovered 3 exits: Acc / *Tes x2) -2/Testing (discovered 3 exits: *Acc / *Sec / *Frg) -2/Protoforge -1/Access -1/Command (discovered 2 exits: [Sur x2]) 0b10 Command History --------- Turn | Location | Event 1 | -11/Scrapyard | Upgraded with Power slot (x1) 1 | -11/Scrapyard | Upgraded with Propulsion slot (x1) 1 | -11/Scrapyard | Upgraded with Utility slot (x1) 1 | -11/Scrapyard | Upgraded with Weapon slot (x1) 7 | -11/Scrapyard | Discovered new exit (range 16) 66 | -11/Scrapyard | Entered Materials 335 | -10/Materials | Discovered new exit (range 14) 377 | -10/Materials | Reached level 2 424 | -10/Materials | Discovered new exit (range 16) 451 | -10/Materials | Build established: Scavenger-Mutant 524 | -10/Materials | Discovered new exit (range 5) 566 | -10/Materials | Derelicts attacked the area 597 | -10/Materials | Discovered new exit (range 15) 646 | -10/Materials | Discovered new exit (range 14) 838 | -10/Materials | Discovered new exit (range 10) 996 | -10/Materials | Reached level 3 1134 | -10/Materials | Reached level 4 1167 | -10/Materials | Destroyed 8 combat bots 1342 | -10/Materials | Entered Subcaves 1343 | -10/Subcaves | Approached by a straggling Scientist 1344 | -10/Subcaves | Reached level 5 1371 | -10/Subcaves | A Subdweller sparked back to life 1371 | -10/Subcaves | A Subdweller sparked back to life 1371 | -10/Subcaves | A Subdweller sparked back to life 1387 | -10/Subcaves | Upgraded with Utility slot (x1) 1443 | -10/Subcaves | Found Prototype Energy Cannon 1443 | -10/Subcaves | Identified Powered Cannon 1445 | -10/Subcaves | Attached Powered Cannon, gained temporary slot: Power 1445 | -10/Subcaves | Upgraded with Propulsion slot (x1) 1754 | -10/Subcaves | Upgraded with Utility slot (x1) 2084 | -10/Subcaves | Visited 4L-MR0's lab 2172 | -10/Subcaves | Shifting Twisted Machinery released Sub. Monowheel 2234 | -10/Subcaves | Shifting Twisted Machinery released Sub. Shrapnel Launcher 2265 | -10/Subcaves | Shifting Twisted Machinery released Battle Rifle 2265 | -10/Subcaves | Shifting Twisted Machinery released Mak. Axe 2466 | -10/Subcaves | Discovered new exit (range 15) 2470 | -10/Subcaves | A swath of the cavern ceiling suddenly collapsed 2516 | -10/Subcaves | Disturbed a concealed Subdweller 2541 | -10/Subcaves | A swath of the cavern ceiling suddenly collapsed 2702 | -10/Subcaves | Shifting Twisted Machinery released Flamer 2703 | -10/Subcaves | Shifting Twisted Machinery released Battle Cannon 2997 | -10/Subcaves | Discovered new exit (range 10) 3538 | -10/Subcaves | Entered Materials 3540 | -8/Materials | Reached level 6 3722 | -8/Materials | Discovered new exit (range 8) 3754 | -8/Materials | Reached level 7 3797 | -8/Materials | Discovered new exit (range 16) 3829 | -8/Materials | Upgraded with Utility slot (x1) 3888 | -8/Materials | Garrison activated, responded to threat 3970 | -8/Materials | Reached level 8 3986 | -8/Materials | Upgraded with Propulsion slot (x1) 4149 | -8/Materials | Reached level 9 4206 | -8/Materials | Discovered new exit (range 16) 4309 | -8/Materials | Discovered new exit (range 8) 4338 | -8/Materials | First assault squad dispatched 4400 | -8/Materials | Build established: Scavenger-Sprinter 4443 | -8/Materials | Reached level 10 4539 | -8/Materials | Garrison activated, responded to threat 4603 | -8/Materials | Reached level 11 4628 | -8/Materials | Sterilization system engaged 4628 | -8/Materials | Non-combat units ordered to evacuate 4643 | -8/Materials | Destroyed 7 combat bots 4655 | -8/Materials | Identified exit to Garrison 4668 | -8/Materials | Entered Garrison 4668 | -8/Garrison | Accompanied by 1 ally 4708 | -8/Garrison | Triggered checkpoint 4746 | -8/Garrison | Triggered checkpoint 4763 | -8/Garrison | Garrison Relay disabled 4763 | -8/Garrison | Reached level 12 4802 | -8/Garrison | Discovered new exit (range 78) 4802 | -8/Garrison | Discovered new exit (range 71) 4802 | -8/Garrison | Discovered new exit (range 9) 4940 | -8/Garrison | Destroyed 8 combat bots 4946 | -8/Garrison | Triggered checkpoint 4951 | -8/Garrison | Garrison Relay disabled 4968 | -8/Garrison | Triggered checkpoint 4974 | -8/Garrison | Triggered checkpoint 5031 | -8/Garrison | Garrison Relay disabled 5031 | -8/Garrison | Reached level 13 5047 | -8/Garrison | Destroyed 7 combat bots 5120 | -8/Garrison | Rescued a captive Derelict 5123 | -8/Garrison | Rescued a captive Derelict 5175 | -8/Garrison | Garrison Relay disabled 5246 | -8/Garrison | Attempted to access garrison exit controls, blocked by remote lockdown 5278 | -8/Garrison | Entered Factory 5280 | -7/Factory | Reached level 14 5307 | -7/Factory | Upgraded with Propulsion slot (x1) 5307 | -7/Factory | Upgraded with Utility slot (x1) 5379 | -7/Factory | Discovered new exit (range 16) 5438 | -7/Factory | Core integrity fell below 50% 5482 | -7/Factory | Reached level 15 5607 | -7/Factory | Build established: Hacker-Sprinter 5621 | -7/Factory | Garrison activated, responded to threat 5637 | -7/Factory | Discovered new exit (range 16) 5678 | -7/Factory | First assault squad dispatched 5862 | -7/Factory | Garrison activated, responded to threat 5865 | -7/Factory | Reached level 16 5886 | -7/Factory | High security lockdown imminent 5905 | -7/Factory | Upgraded with Utility slot (x1) 5907 | -7/Factory | Destroyed 8 combat bots 5966 | -7/Factory | High security lockdown engaged 6138 | -7/Factory | Destroyed 8 combat bots 6151 | -7/Factory | Reached level 17 6165 | -7/Factory | Upgraded with Utility slot (x1) 6175 | -7/Factory | Destroyed 7 combat bots 6193 | -7/Factory | Discovered new exit (range 10) 6293 | -7/Factory | Destroyed 16 combat bots 6388 | -7/Factory | Destroyed 8 combat bots 6472 | -7/Factory | Build established: Scavenger-Sprinter 6513 | -7/Factory | Reached level 18 6638 | -7/Factory | Destroyed 12 combat bots 6757 | -7/Factory | Destroyed 14 combat bots 6799 | -7/Factory | Sterilization system engaged 6799 | -7/Factory | Non-combat units ordered to evacuate 6822 | -7/Factory | Destroyed 9 combat bots 6875 | -7/Factory | Destroyed 10 combat bots 6895 | -7/Factory | Core integrity fell below 20% 6899 | -7/Factory | Combat units ordered to evacuate 7014 | -7/Factory | Destroyed 7 combat bots 7086 | -7/Factory | Identified exit to Lower Caves 7088 | -7/Factory | Entered Lower Caves 7098 | -7/Lower Caves | Encountered a Warlord checkpoint 7104 | -7/Lower Caves | Met a Warlord Commander 7105 | -7/Lower Caves | Learned location of Warlord (-5) 7106 | -7/Lower Caves | Warlord Commander delivered Encrypted Comm Array 7108 | -7/Lower Caves | Found Encrypted Comm Array 7116 | -7/Lower Caves | Identified exit to Lower Caves 7132 | -7/Lower Caves | Reached level 19 7168 | -7/Lower Caves | Attracted the attention of an 0b10 outpost 7170 | -7/Lower Caves | Destroyed 9 combat bots 7222 | -7/Lower Caves | Destroyed 8 combat bots 7267 | -7/Lower Caves | Murdered Warlord Statue 7271 | -7/Lower Caves | Learned Factory stockpile data 7283 | -7/Lower Caves | Found Prototype Device 7283 | -7/Lower Caves | Identified Heart of Steel 7289 | -7/Lower Caves | Attracted the attention of an 0b10 checkpoint 7521 | -7/Lower Caves | Learned Factory stockpile data 7579 | -7/Lower Caves | Heart of Steel transformed into Warbot 7841 | -7/Lower Caves | Entered another Lower Caves area 7841 | -7/Lower Caves | Accompanied by 1 ally (Warbot) 7876 | -7/Lower Caves | Entered an active Warlord outpost 7879 | -7/Lower Caves | Learned Armory trap positions 7879 | -7/Lower Caves | Learned 8 Factory zone layouts 7956 | -7/Lower Caves | Discovered new exit (range 11) 7958 | -7/Lower Caves | Identified exit to Zion 8047 | -7/Lower Caves | Discovered new exit (range 4) 8048 | -7/Lower Caves | Identified exit to Factory 8242 | -7/Lower Caves | Entered Zion 8242 | -7/Zion | Accompanied by 1 ally (Warbot) 8250 | -7/Zion | System corruption cleaned by Quarantine Array 8286 | -7/Zion | Discovered new exit (range 10) 8305 | -7/Zion | Learned location of Quarantine (-3) 8337 | -7/Zion | Given the Hacking Drone Bay 8353 | -7/Zion | Found Prototype Device 8383 | -7/Zion | Learned location of Extension (-4) 8391 | -7/Zion | Found CR-A16's Pointy Stick 8473 | -7/Zion | Discovered new exit (range 4) 8473 | -7/Zion | Saw the warning signs outside the Deep Caves entrance 8473 | -7/Zion | Identified Phasing AFG 8621 | -7/Zion | Identified exit to Deep Caves 8626 | -7/Zion | Entered Deep Caves 8626 | -7/Deep Caves | Accompanied by 1 ally (Warbot) 8680 | -7/Deep Caves | Destroyed 9 combat bots 8724 | -7/Deep Caves | Attacked by Z-Imprinter 8733 | -7/Deep Caves | Allies destroyed Z-Imprinter 8756 | -7/Deep Caves | Z-Facility disabled 8798 | -7/Deep Caves | Found Prototype Protection 8798 | -7/Deep Caves | Identified Zio. Weapon Casing 8904 | -7/Deep Caves | Spotted AG-54640 8915 | -7/Deep Caves | Found Prototype Energy Cannon 8931 | -7/Deep Caves | Discovered new exit (range 6) 8932 | -7/Deep Caves | Identified exit to Proximity Caves 9382 | -7/Deep Caves | Entered Proximity Caves 9382 | -6/Proximity Caves | Accompanied by 1 ally (Warbot) 9510 | -6/Proximity Caves | Attracted the attention of an 0b10 outpost 9548 | -6/Proximity Caves | Attracted the attention of an 0b10 checkpoint 9628 | -6/Proximity Caves | Reached level 20 9677 | -6/Proximity Caves | Spotted B-75 Beast 9680 | -6/Proximity Caves | Destroyed B-75 Beast 9693 | -6/Proximity Caves | Upgraded with Weapon slot (x1) 9698 | -6/Proximity Caves | Entered Factory 9698 | -6/Factory | Accompanied by 2 allies (Warbot) 9699 | -6/Factory | Identified exit to Lower Caves 9700 | -6/Factory | Identified exit to Factory 9899 | -6/Factory | Unchained authorized (CL-0N3) 9999 | -6/Factory | Garrison activated, responded to threat 10008 | -6/Factory | P-60 Hacker assimilated allied Administrator 5a 10036 | -6/Factory | Discovered exit to Lower Caves (range 4) 10082 | -6/Factory | Destroyed 13 combat bots 10141 | -6/Factory | Reached level 21 10160 | -6/Factory | Martyr reconstituted as CL-0N3 10202 | -6/Factory | Cargo convoy interrupted 10262 | -6/Factory | Core integrity fell below 50% 10288 | -6/Factory | Destroyed 10 combat bots 10310 | -6/Factory | U-05 Engineer reconstituted as Lightning 10313 | -6/Factory | Spotted Lightning 10336 | -6/Factory | Destroyed Lightning 10336 | -6/Factory | Lightning reconstituted as CL-0N3 10362 | -6/Factory | Destroyed CL-0N3 10365 | -6/Factory | Extracted schematics, analyses from CL-0N3's data core 10398 | -6/Factory | First assault squad dispatched 10452 | -6/Factory | Destroyed 11 combat bots 10868 | -6/Factory | Fabricated X-87 Electro (x2) 11022 | -6/Factory | Found Unknown Device 11022 | -6/Factory | Identified Launcher Loader 11081 | -6/Factory | Identified Latent Energy Streamer 11358 | -6/Factory | Reached level 22 11360 | -6/Factory | Upgraded with Power slot (x1) 11406 | -6/Factory | Fabricated X-87 Electro (x2) 11439 | -6/Factory | Discovered exit to Factory (range 16) 11486 | -6/Factory | High security lockdown imminent 11566 | -6/Factory | High security lockdown engaged 11713 | -6/Factory | Fabricated X-87 Electro (x2) 11725 | -6/Factory | Sterilization system engaged 11725 | -6/Factory | Non-combat units ordered to evacuate 11783 | -6/Factory | Lost 3 allies 11825 | -6/Factory | Combat units ordered to evacuate 11848 | -6/Factory | Destroyed 26 combat bots 11867 | -6/Factory | Entered Lower Caves 11906 | -6/Lower Caves | Found DCF Scrap (9 items) 11931 | -6/Lower Caves | Encountered a Warlord checkpoint 12036 | -6/Lower Caves | Discovered new exit (range 15) 12038 | -6/Lower Caves | Identified exit to Lower Caves 12053 | -6/Lower Caves | Destroyed 8 combat bots 12079 | -6/Lower Caves | Spotted B-75 Beast 12107 | -6/Lower Caves | Revealed the true nature of CR-A16's Pointy Stick 12107 | -6/Lower Caves | Destroyed B-75 Beast 12232 | -6/Lower Caves | Entered another Lower Caves area 12281 | -6/Lower Caves | Encountered a Warlord checkpoint 12306 | -6/Lower Caves | Attracted the attention of an 0b10 checkpoint 12343 | -6/Lower Caves | Discovered new exit (range 11) 12345 | -6/Lower Caves | Identified exit to Data Miner 12473 | -6/Lower Caves | Discovered exit to Factory (range 9) 12523 | -6/Lower Caves | Entered Data Miner 12523 | -6/Data Miner | Discovered new exit (range 6) 12528 | -6/Data Miner | Met Data Miner 12536 | -6/Data Miner | Received God Mode back door access code from Data Miner 12541 | -6/Data Miner | Identified exit to Proximity Caves 12541 | -6/Data Miner | Entered Proximity Caves 12541 | -5/Proximity Caves | Spotted B-75 Beast 12543 | -5/Proximity Caves | Reached level 23 12543 | -5/Proximity Caves | Destroyed B-75 Beast 12556 | -5/Proximity Caves | Upgraded with Utility slot (x1) 12611 | -5/Proximity Caves | Attracted the attention of an 0b10 checkpoint 12677 | -5/Proximity Caves | Learned Factory terminal intel 12741 | -5/Proximity Caves | Snuck into a huge 0b10 base via the rear entrance 12828 | -5/Proximity Caves | Spotted B-75 Beast 12835 | -5/Proximity Caves | Destroyed B-75 Beast 12906 | -5/Proximity Caves | Lost 4 allies 12962 | -5/Proximity Caves | Destroyed 13 combat bots 13036 | -5/Proximity Caves | Fabricated X-87 Electro (x2) 13228 | -5/Proximity Caves | Entered Factory 13228 | -5/Factory | Accompanied by 8 allies 13229 | -5/Factory | Identified exit to Upper Caves 13230 | -5/Factory | Reached level 24 13231 | -5/Factory | Loaded intel: 26 terminal locations 13243 | -5/Factory | Discovered new exit (range 15) 13259 | -5/Factory | Identified exit to Factory 13275 | -5/Factory | Build established: Commander-Sprinter 13317 | -5/Factory | Destroyed 7 combat bots 13331 | -5/Factory | Spotted B-75 Beast 13332 | -5/Factory | Destroyed B-75 Beast 13380 | -5/Factory | Unchained authorized (6S-H0T) 13537 | -5/Factory | Discovered exit to Factory (range 15) 13650 | -5/Factory | Destroyed 10 combat bots 13753 | -5/Factory | Discovered exit to Upper Caves (range 15) 13789 | -5/Factory | Core integrity fell below 50% 13812 | -5/Factory | Destroyed 6S-H0T 13813 | -5/Factory | Found Prototype Processor 13813 | -5/Factory | Identified Exp. Targeting Computer 13820 | -5/Factory | Sucked down chute 13820 | -5/Factory | Entered Waste 13833 | -5/Waste | Spotted C-40 Crusher 13839 | -5/Waste | Spotted C-40 Crusher 13848 | -5/Waste | Spotted C-40 Crusher 13849 | -5/Waste | Spotted C-40 Crusher 13850 | -5/Waste | Spotted C-40 Crusher 13855 | -5/Waste | Spotted C-40 Crusher 13910 | -5/Waste | Discovered new exit (range 13) 13921 | -5/Waste | Identified exit to Factory 13921 | -5/Waste | Entered Factory 14013 | -5/Factory | Spotted B-75 Beast 14024 | -5/Factory | Destroyed B-75 Beast 14106 | -5/Factory | Discovered exit to Factory (range 6) 14137 | -5/Factory | Build established: Scavenger-Sprinter 14150 | -5/Factory | Discovered exit to Upper Caves (range 8) 14193 | -5/Factory | Reached level 25 14468 | -5/Factory | Cargo convoy interrupted 14521 | -5/Factory | Destroyed 7 combat bots 14539 | -5/Factory | Found Prototype Device 14539 | -5/Factory | Identified Exp. Actuator Array 14652 | -5/Factory | Discovered exit to Upper Caves (range 7) 14867 | -5/Factory | Specialist reinforcements revealed to be Infiltrators 14879 | -5/Factory | Fabricated Quantum Capacitor (x2) 14911 | -5/Factory | Unchained authorized (QV-33N) 14940 | -5/Factory | Specialist reinforcements revealed to be Infiltrators 15029 | -5/Factory | Garrison activated, responded to threat 15055 | -5/Factory | Destroyed 11 combat bots 15097 | -5/Factory | Destroyed QV-33N 15105 | -5/Factory | Found Prototype Device 15105 | -5/Factory | Identified Exp. Phase Shifter 15107 | -5/Factory | Found Prototype Device 15107 | -5/Factory | Identified Zeronet Interface 15118 | -5/Factory | Destroyed 9 combat bots 15121 | -5/Factory | First assault squad dispatched 15129 | -5/Factory | Build established: Hacker-Sprinter 15361 | -5/Factory | Unchained authorized (DW-4LL) 15492 | -5/Factory | Destroyed 11 combat bots 15500 | -5/Factory | DW-4LL burst out of a wall 15508 | -5/Factory | Destroyed DW-4LL 15509 | -5/Factory | Found Prototype Processor 15509 | -5/Factory | Identified Exp. Armor Integrity Analyzer 15513 | -5/Factory | Found Prototype Device 15513 | -5/Factory | Identified Exp. Weapon Cycler 15525 | -5/Factory | High security lockdown imminent 15582 | -5/Factory | Destroyed 10 combat bots 15605 | -5/Factory | High security lockdown engaged 15650 | -5/Factory | Reached level 26 15778 | -5/Factory | Sterilization system engaged 15778 | -5/Factory | Non-combat units ordered to evacuate 15878 | -5/Factory | Combat units ordered to evacuate 15917 | -5/Factory | Destroyed 33 combat bots 15951 | -5/Factory | Entered Upper Caves 16002 | -5/Upper Caves | Attracted the attention of an 0b10 outpost 16028 | -5/Upper Caves | Learned Factory terminal intel 16033 | -5/Upper Caves | Learned location of 1 exit from Factory 16045 | -5/Upper Caves | Destroyed 7 combat bots 16098 | -5/Upper Caves | Discovered new exit (range 6) 16101 | -5/Upper Caves | Identified exit to Upper Caves 16375 | -5/Upper Caves | Entered another Upper Caves area 16375 | -5/Upper Caves | Accompanied by 2 allies 16390 | -5/Upper Caves | Discovered exit to Factory (range 10) 16439 | -5/Upper Caves | Learned Factory garrison access intel 16498 | -5/Upper Caves | Attracted the attention of an 0b10 checkpoint 16510 | -5/Upper Caves | Discovered new exit (range 8) 16519 | -5/Upper Caves | Identified exit to Warlord 16538 | -5/Upper Caves | Spotted B-75 Beast 16541 | -5/Upper Caves | Destroyed B-75 Beast 16710 | -5/Upper Caves | Entered Warlord 16710 | -5/Warlord | Accompanied by 2 allies 16719 | -5/Warlord | System corruption cleaned by Quarantine Array 16756 | -5/Warlord | Learned Factory terminal intel 16756 | -5/Warlord | Learned Research terminal intel 16756 | -5/Warlord | Learned Armory repair station intel 16756 | -5/Warlord | Learned 4 Research zone layouts 16756 | -5/Warlord | Learned 4 Command zone layouts 16756 | -5/Warlord | Learned Research trap positions 16756 | -5/Warlord | Learned Testing emergency access door positions 16788 | -5/Warlord | Found Prototype Device 16788 | -5/Warlord | Identified Exp. Focal Shield 16796 | -5/Warlord | Found Prototype Reactor 16796 | -5/Warlord | Identified Vortex Chain Reactor 16799 | -5/Warlord | Upgraded with Propulsion slot (x1) 16818 | -5/Warlord | Found Prototype Processor 16818 | -5/Warlord | Identified Exp. Target Analyzer 16975 | -5/Warlord | Warlord's base attacked by MAIN.C 16976 | -5/Warlord | Met Warlord 17129 | -5/Warlord | Destroyed 18 combat bots 17185 | -5/Warlord | Build established: Commander-Sprinter 17247 | -5/Warlord | Warlord forces counterattacked 17267 | -5/Warlord | Destroyed 9 combat bots 17289 | -5/Warlord | Spotted Striker 17289 | -5/Warlord | Spotted Executioner 17294 | -5/Warlord | Spotted Executioner 17294 | -5/Warlord | Destroyed Striker 17300 | -5/Warlord | Destroyed Executioner 17308 | -5/Warlord | Destroyed Executioner 17338 | -5/Warlord | Destroyed 15 combat bots 17377 | -5/Warlord | Spotted Executioner 17377 | -5/Warlord | Spotted Striker 17377 | -5/Warlord | Spotted Striker 17384 | -5/Warlord | Destroyed Executioner 17394 | -5/Warlord | Destroyed Striker 17417 | -5/Warlord | Destroyed 8 combat bots 17426 | -5/Warlord | Lost 9 allies 17475 | -5/Warlord | Spotted B-86 Titan 17475 | -5/Warlord | Spotted Executioner 17479 | -5/Warlord | Destroyed Executioner 17480 | -5/Warlord | Spotted B-75 Beast 17485 | -5/Warlord | Destroyed B-86 Titan 17488 | -5/Warlord | Destroyed B-75 Beast 17507 | -5/Warlord | Found Prototype Processor 17507 | -5/Warlord | Identified Exp. Core Analyzer 17515 | -5/Warlord | Lost 5 allies 17575 | -5/Warlord | Spotted Striker 17583 | -5/Warlord | Destroyed Striker 17617 | -5/Warlord | Destroyed 7 combat bots 17622 | -5/Warlord | Lost 4 allies 17650 | -5/Warlord | Warlord base infiltrated, sounded retreat 17676 | -5/Warlord | Spotted Executioner 17676 | -5/Warlord | Spotted Executioner 17676 | -5/Warlord | Spotted Striker 17676 | -5/Warlord | Discovered new exit (range 8) 17696 | -5/Warlord | Destroyed Striker 17697 | -5/Warlord | Destroyed Executioner 17701 | -5/Warlord | Reached level 27 17711 | -5/Warlord | Destroyed Executioner 17732 | -5/Warlord | Destroyed 11 combat bots 17741 | -5/Warlord | Lost 10 allies 17778 | -5/Warlord | Spotted Executioner 17779 | -5/Warlord | Spotted B-86 Titan 17779 | -5/Warlord | Spotted B-75 Beast 17786 | -5/Warlord | Destroyed B-75 Beast 17789 | -5/Warlord | Destroyed B-86 Titan 17796 | -5/Warlord | Destroyed Executioner 17836 | -5/Warlord | Destroyed 14 combat bots 17875 | -5/Warlord | Spotted Striker 17875 | -5/Warlord | Spotted Striker 17875 | -5/Warlord | Spotted Striker 17878 | -5/Warlord | Destroyed Striker 17880 | -5/Warlord | Destroyed Striker 17953 | -5/Warlord | Spotted Executioner 17967 | -5/Warlord | Destroyed Executioner 17976 | -5/Warlord | Spotted Striker 17986 | -5/Warlord | Spotted Executioner 17986 | -5/Warlord | Destroyed Striker 17991 | -5/Warlord | Destroyed Executioner 18043 | -5/Warlord | Destroyed 18 combat bots 18083 | -5/Warlord | Spotted B-86 Titan 18088 | -5/Warlord | Spotted B-75 Beast 18089 | -5/Warlord | Destroyed B-86 Titan 18092 | -5/Warlord | Destroyed B-75 Beast 18121 | -5/Warlord | Lost 5 allies 18130 | -5/Warlord | Found Prototype Device 18130 | -5/Warlord | Identified Adv. Kinecellerator 18145 | -5/Warlord | Destroyed 13 combat bots 18181 | -5/Warlord | Spotted Executioner 18189 | -5/Warlord | Destroyed Executioner 18242 | -5/Warlord | Spotted Striker 18242 | -5/Warlord | Spotted Executioner 18246 | -5/Warlord | Destroyed Striker 18248 | -5/Warlord | Destroyed Executioner 18283 | -5/Warlord | Destroyed 33 combat bots 18285 | -5/Warlord | Spotted Striker 18295 | -5/Warlord | Destroyed Striker 18302 | -5/Warlord | Spotted Executioner 18314 | -5/Warlord | Destroyed Executioner 18335 | -5/Warlord | Destroyed 10 combat bots 18342 | -5/Warlord | Build established: Hacker-Sprinter 18343 | -5/Warlord | Spotted Striker 18343 | -5/Warlord | Destroyed Striker 18394 | -5/Warlord | Spotted Executioner 18399 | -5/Warlord | Destroyed Executioner 18401 | -5/Warlord | Spotted Striker 18411 | -5/Warlord | Destroyed Striker 18438 | -5/Warlord | Spotted Striker 18440 | -5/Warlord | Destroyed Striker 18455 | -5/Warlord | Spotted Executioner 18468 | -5/Warlord | Destroyed Executioner 18489 | -5/Warlord | Destroyed 45 combat bots 18533 | -5/Warlord | Attacked by Warlord forces 18538 | -5/Warlord | Destroyed Fake God Mode 18579 | -5/Warlord | Entered Proximity Caves 18615 | -4/Proximity Caves | Attracted the attention of an 0b10 base 18660 | -4/Proximity Caves | Learned Extension trap positions 18660 | -4/Proximity Caves | Learned Armory terminal intel 18660 | -4/Proximity Caves | Learned Research garrison access intel 18668 | -4/Proximity Caves | Destroyed 16 combat bots 18681 | -4/Proximity Caves | Learned 4 Research zone layouts 18704 | -4/Proximity Caves | Spotted B-86 Titan 18710 | -4/Proximity Caves | Destroyed B-86 Titan 18731 | -4/Proximity Caves | Destroyed 8 combat bots 18779 | -4/Proximity Caves | Discovered exit to Factory (range 8) 18831 | -4/Proximity Caves | Entered Factory 18832 | -4/Factory | Identified exit to Extension 18833 | -4/Factory | Loaded intel: 27 terminal locations 18833 | -4/Factory | Reached level 28 18834 | -4/Factory | Loaded intel: 4 garrison access locations 18841 | -4/Factory | Upgraded with Utility slot (x1) 18923 | -4/Factory | Identified exit to Upper Caves 18923 | -4/Factory | Identified exit to Armory 18923 | -4/Factory | Identified exit to Research 18996 | -4/Factory | Unchained authorized (GL-D0S) 19001 | -4/Factory | Destroyed 10 combat bots 19040 | -4/Factory | Spotted B-86 Titan 19041 | -4/Factory | Destroyed B-86 Titan 19094 | -4/Factory | Spotted B-86 Titan 19096 | -4/Factory | Destroyed B-86 Titan 19118 | -4/Factory | Fabricated P-80 Master? 19157 | -4/Factory | Destroyed 12 combat bots 19165 | -4/Factory | Fabricated P-80 Master? 19204 | -4/Factory | Fabricated P-80 Master (x2) 19242 | -4/Factory | Master 7b assimilated hostile H-77 Assassin 19324 | -4/Factory | Destroyed 11 combat bots 19330 | -4/Factory | Core integrity fell below 50% 19331 | -4/Factory | First assault squad dispatched 19346 | -4/Factory | Destroyed GL-D0S 19367 | -4/Factory | Found Prototype Processor 19367 | -4/Factory | Identified Spectral Analyzer 19370 | -4/Factory | Found Prototype Processor 19370 | -4/Factory | Identified Exp. Signal Interpreter 19372 | -4/Factory | Found Prototype Device 19372 | -4/Factory | Identified Exp. Sensor Array 19385 | -4/Factory | Garrison activated, responded to threat 19461 | -4/Factory | Destroyed 7 combat bots 19474 | -4/Factory | Reached level 29 19532 | -4/Factory | Destroyed 8 combat bots 19604 | -4/Factory | Destroyed 13 combat bots 19746 | -4/Factory | Sucked down chute 19746 | -4/Factory | Entered Waste 19746 | -4/Waste | The area was eerily silent 19766 | -4/Waste | A Compactor rumbled back to life 19766 | -4/Waste | Spotted C-40 Crusher 19773 | -4/Waste | Destroyed C-40 Crusher 19791 | -4/Waste | Found Prototype Device 19791 | -4/Waste | Identified Exp. Transmission Jammer 19796 | -4/Waste | Discovered new exit (range 12) 19824 | -4/Waste | Entered Factory 19825 | -4/Factory | Loaded intel: 27 terminal locations 19868 | -4/Factory | Garrison activated, responded to threat 19896 | -4/Factory | Destroyed 12 combat bots 19909 | -4/Factory | Discovered exit to Upper Caves (range 5) 19915 | -4/Factory | Discovered exit to Research (range 16) 20043 | -4/Factory | Spotted B-86 Titan 20046 | -4/Factory | Destroyed B-86 Titan 20065 | -4/Factory | Discovered exit to Research (range 16) 20389 | -4/Factory | Spotted B-86 Titan 20391 | -4/Factory | Destroyed B-86 Titan 20574 | -4/Factory | First assault squad dispatched 20590 | -4/Factory | Cargo convoy interrupted 20644 | -4/Factory | Lost 3 allies 20747 | -4/Factory | Destroyed 28 combat bots 20754 | -4/Factory | High security lockdown imminent 20834 | -4/Factory | High security lockdown engaged 20857 | -4/Factory | Destroyed 8 combat bots 20865 | -4/Factory | Fabricated P-80 Master (x2) 20870 | -4/Factory | Fabricated P-80 Master? 20889 | -4/Factory | Fabricated P-80 Master? 20894 | -4/Factory | Garrison activated, responded to threat 20962 | -4/Factory | Entered Armory 20962 | -4/Armory | Accompanied by 5 allies 20963 | -4/Armory | Loaded intel: 47 trap records 20964 | -4/Armory | Loaded intel: 13 terminal locations 20965 | -4/Armory | Loaded intel: 2 repair station locations 21107 | -4/Armory | Reached level 30 21138 | -4/Armory | Destroyed 9 combat bots 21175 | -4/Armory | Destroyed 9 combat bots 21197 | -4/Armory | P-70 Sage assimilated allied Swordsman 7d 21212 | -4/Armory | First assault squad dispatched 21221 | -4/Armory | Spotted B-86 Titan 21222 | -4/Armory | Destroyed B-86 Titan 21271 | -4/Armory | Lost 6 allies 21284 | -4/Armory | Destroyed 8 combat bots 21407 | -4/Armory | Fabricated P-80 Master (x2) 21437 | -4/Armory | Energy Cycler disabled 21460 | -4/Armory | Discovered exit to Research (range 5) 21467 | -4/Armory | Destroyed 11 combat bots 21486 | -4/Armory | Incoming assault squad redirected 21509 | -4/Armory | Destroyed 9 combat bots 21548 | -4/Armory | Fabricated P-80 Master? 21582 | -4/Armory | Destroyed 7 combat bots 21646 | -4/Armory | Fabricated P-80 Master? 21664 | -4/Armory | Entered Research 21664 | -3/Research | Accompanied by 8 allies 21665 | -3/Research | Identified exit to Research 21666 | -3/Research | Loaded intel: 102 trap records 21667 | -3/Research | Loaded intel: 25 terminal locations 21668 | -3/Research | Loaded intel: 4 garrison access locations 21675 | -3/Research | Master 7r assimilated hostile S-43 Plague 21682 | -3/Research | Master 7o assimilated hostile S-43 Plague 21699 | -3/Research | Spotted B-86 Titan 21702 | -3/Research | Destroyed B-86 Titan 21776 | -3/Research | Discovered new exit (range 15) 21902 | -3/Research | High security lockdown imminent 21935 | -3/Research | Entered Quarantine 21935 | -3/Quarantine | Accompanied by 8 allies 21941 | -3/Quarantine | Reached level 31 21960 | -3/Quarantine | Build established: Commander-Sprinter 21972 | -3/Quarantine | Master 7q assimilated hostile H-77 Assassin 21993 | -3/Quarantine | Garrison activated, responded to threat 22025 | -3/Quarantine | Spotted Alpha 7 22026 | -3/Quarantine | Destroyed Alpha 7 22067 | -3/Quarantine | Upgraded with Utility slot (x1) 22067 | -3/Quarantine | Found Alien Artifact 22118 | -3/Quarantine | Discovered exit to Research (range 15) 22185 | -3/Quarantine | First assault squad dispatched 22194 | -3/Quarantine | Master 7p assimilated hostile H-77 Assassin 22224 | -3/Quarantine | High security lockdown imminent 22225 | -3/Quarantine | Master 7m assimilated hostile G-67 Veteran 22244 | -3/Quarantine | Entered Research 22244 | -2/Research | Accompanied by 4 allies 22244 | -2/Research | Warlord forces began assault on 0b10 22245 | -2/Research | Identified exit to Access 22257 | -2/Research | Found Exp. Signal Interpreter 22274 | -2/Research | Identified exit to Testing 22280 | -2/Research | Reached level 32 22324 | -2/Research | Destroyed 8 combat bots 22354 | -2/Research | Research machine network offline 22393 | -2/Research | Attacked by Warlord 22400 | -2/Research | Build established: Hacker-Sprinter 22422 | -2/Research | Upgraded with Weapon slot (x1) 22449 | -2/Research | Spotted 86-FP3(K) 22451 | -2/Research | Spotted 7A-IUC(H) 22452 | -2/Research | Spotted B5-NN9(K) 22452 | -2/Research | Destroyed 86-FP3(K) 22469 | -2/Research | Destroyed 7A-IUC(H) 22477 | -2/Research | Spotted XU-3VL(D) 22497 | -2/Research | Destroyed XU-3VL(D) 22506 | -2/Research | Took control of God Mode 22521 | -2/Research | Destroyed 16 combat bots 22528 | -2/Research | Spotted C5-64Q(K) 22530 | -2/Research | Allies destroyed C5-64Q(K) 22532 | -2/Research | Core integrity fell below 50% 22535 | -2/Research | Destroyed Warlord 22535 | -2/Research | Reached level 33 22537 | -2/Research | Warlord destroyed during the assault 22548 | -2/Research | Destroyed B5-NN9(K) 22654 | -2/Research | Borebot progress halted 22750 | -2/Research | Entered Testing 22750 | -2/Testing | Accompanied by 2 allies (*Puppies And Kittens) 22774 | -2/Testing | Found Prototype Energy Gun 22774 | -2/Testing | Identified Hyp. EM Gauss Rifle 22886 | -2/Testing | Destroyed 9 combat bots 22926 | -2/Testing | Destroyed 7 combat bots 22927 | -2/Testing | Discovered exit to Access (range 15) 22947 | -2/Testing | High security lockdown imminent 22992 | -2/Testing | Reached level 34 23027 | -2/Testing | High security lockdown engaged 23049 | -2/Testing | Spotted Executioner 23065 | -2/Testing | Destroyed Executioner 23091 | -2/Testing | Destroyed 35 combat bots 23103 | -2/Testing | Spotted Fortress 23117 | -2/Testing | Destroyed Fortress 23132 | -2/Testing | Discovered new exit (range 6) 23132 | -2/Testing | Discovered new exit (range 7) 23132 | -2/Testing | Identified exit to Section 7 23133 | -2/Testing | Identified exit to Protoforge 23156 | -2/Testing | Spotted Investigator 23157 | -2/Testing | Scanned by Researcher 23163 | -2/Testing | Spotted Executioner 23166 | -2/Testing | Destroyed Investigator 23197 | -2/Testing | Destroyed Executioner 23229 | -2/Testing | Destroyed 16 combat bots 23311 | -2/Testing | Spotted PG-PUYDOGL5ET 23316 | -2/Testing | Rewired PX-UMM6W0Y3RU 23338 | -2/Testing | Allies destroyed PG-PUYDOGL5ET 23383 | -2/Testing | Spotted Investigator 23389 | -2/Testing | Allies destroyed Investigator 23437 | -2/Testing | Spotted Striker 23437 | -2/Testing | Spotted Striker 23438 | -2/Testing | Destroyed 20 combat bots 23536 | -2/Testing | Entered Protoforge 23548 | -2/Protoforge | Superfortress began startup sequence 23575 | -2/Protoforge | Spotted Hotshot 23575 | -2/Protoforge | Spotted Hotshot 23575 | -2/Protoforge | Spotted Hotshot 23597 | -2/Protoforge | Spotted Hotshot 23597 | -2/Protoforge | Spotted Hotshot 23598 | -2/Protoforge | Destroyed Hotshot 23599 | -2/Protoforge | Destroyed Hotshot 23599 | -2/Protoforge | Spotted Hotshot 23599 | -2/Protoforge | Spotted Hotshot 23600 | -2/Protoforge | Destroyed Hotshot 23603 | -2/Protoforge | Destroyed Hotshot 23605 | -2/Protoforge | Spotted Hotshot 23607 | -2/Protoforge | Spotted Hotshot 23609 | -2/Protoforge | Spotted Hotshot 23610 | -2/Protoforge | Spotted Hotshot 23618 | -2/Protoforge | Destroyed Hotshot 23627 | -2/Protoforge | Destroyed Hotshot 23630 | -2/Protoforge | Reached level 35 23630 | -2/Protoforge | Destroyed Hotshot 23635 | -2/Protoforge | Destroyed Hotshot 23656 | -2/Protoforge | Destroyed 8 combat bots 23786 | -2/Protoforge | First assault squad dispatched 23879 | -2/Protoforge | Spotted Overlord 23884 | -2/Protoforge | Destroyed Overlord 23985 | -2/Protoforge | System corruption reached 10% 24035 | -2/Protoforge | Spotted AP7-3 24054 | -2/Protoforge | Spotted AP7-3 24080 | -2/Protoforge | Destroyed AP7-3 24100 | -2/Protoforge | Core integrity fell below 20% 24111 | -2/Protoforge | Destroyed AP7-3 24161 | -2/Protoforge | Destroyed 45 combat bots 24282 | -2/Protoforge | Spotted Hotshot 24285 | -2/Protoforge | Spotted Hotshot 24287 | -2/Protoforge | Spotted Hotshot 24288 | -2/Protoforge | Destroyed Hotshot 24292 | -2/Protoforge | Spotted Hotshot 24292 | -2/Protoforge | Spotted Hotshot 24292 | -2/Protoforge | Destroyed Hotshot 24293 | -2/Protoforge | Destroyed Hotshot 24295 | -2/Protoforge | Destroyed Hotshot 24298 | -2/Protoforge | Destroyed Hotshot 24325 | -2/Protoforge | System corruption reached 30% 24359 | -2/Protoforge | Destroyed 22 combat bots 24361 | -2/Protoforge | Spotted Hotshot 24363 | -2/Protoforge | Destroyed Hotshot 24367 | -2/Protoforge | Destroyed Hotshot 24369 | -2/Protoforge | Destroyed Hotshot 24375 | -2/Protoforge | Destroyed Hotshot 24395 | -2/Protoforge | Spotted B-90 Cyclops 24396 | -2/Protoforge | Destroyed B-90 Cyclops 24454 | -2/Protoforge | Destroyed 7 combat bots 24864 | -2/Protoforge | Forge Plexus network access discovered 25296 | -2/Protoforge | Found Prototype Device 25296 | -2/Protoforge | Identified Exp. Shock Absorption System 25352 | -2/Protoforge | Spotted Decapitator 25352 | -2/Protoforge | Spotted Decapitator 25361 | -2/Protoforge | Destroyed 12 combat bots 25462 | -2/Protoforge | Incoming assault squad redirected 25528 | -2/Protoforge | Destroyed 12 combat bots 25678 | -2/Protoforge | Destroyed 11 combat bots 25805 | -2/Protoforge | Fabricated Adv. System Restoration Module (x2) 25895 | -2/Protoforge | Destroyed 11 combat bots 25930 | -2/Protoforge | Reached level 36 25960 | -2/Protoforge | Destroyed 12 combat bots 26103 | -2/Protoforge | Destroyed 12 combat bots 26169 | -2/Protoforge | Destroyed 8 combat bots 26210 | -2/Protoforge | Found Cep. Weapon Articulator 26217 | -2/Protoforge | Found Prototype Device 26220 | -2/Protoforge | Spotted Decapitator 26220 | -2/Protoforge | Spotted Decapitator 26220 | -2/Protoforge | Destroyed Decapitator 26229 | -2/Protoforge | Spotted Immortal 26243 | -2/Protoforge | Rewired Decapitator 26264 | -2/Protoforge | Spotted V869-n 26270 | -2/Protoforge | Destroyed V869-n 26287 | -2/Protoforge | Found Cep. Fieldthrust Drive 26301 | -2/Protoforge | Found Faulty Cep. Fieldthrust Drive 26302 | -2/Protoforge | Identified Crosscalibrator 26345 | -2/Protoforge | Found Faulty Cep. Fieldthrust Drive 26435 | -2/Protoforge | Rewired Immortal 26445 | -2/Protoforge | Found Cep. Zero-point Core 26516 | -2/Protoforge | Destroyed 20 combat bots 26562 | -2/Protoforge | Incoming assault squad redirected 26599 | -2/Protoforge | Spotted Decapitator 26599 | -2/Protoforge | Spotted Decapitator 26615 | -2/Protoforge | Destroyed 20 combat bots 26656 | -2/Protoforge | Incoming assault squad redirected 26691 | -2/Protoforge | Destroyed 9 combat bots 26695 | -2/Protoforge | Spotted Decapitator 26696 | -2/Protoforge | Spotted Decapitator 26697 | -2/Protoforge | Destroyed Decapitator 26697 | -2/Protoforge | Spotted Decapitator 26699 | -2/Protoforge | Destroyed Decapitator 26702 | -2/Protoforge | Destroyed Decapitator 26703 | -2/Protoforge | Destroyed Decapitator 26708 | -2/Protoforge | Rewired Decapitator 26725 | -2/Protoforge | Spotted EXE-6 26725 | -2/Protoforge | Spotted EXE-6 26728 | -2/Protoforge | Destroyed EXE-6 26741 | -2/Protoforge | Destroyed EXE-6 26790 | -2/Protoforge | Spotted EXE-6 26790 | -2/Protoforge | Spotted EXE-6 26797 | -2/Protoforge | Destroyed EXE-6 26798 | -2/Protoforge | Destroyed EXE-6 26799 | -2/Protoforge | Spotted SKR-2 26799 | -2/Protoforge | Spotted SKR-2 26803 | -2/Protoforge | Spotted SKR-2 26806 | -2/Protoforge | Incoming assault squad redirected 26819 | -2/Protoforge | Destroyed SKR-2 26819 | -2/Protoforge | Destroyed SKR-2 26820 | -2/Protoforge | Destroyed SKR-2 26823 | -2/Protoforge | Found Prototype Processor 26823 | -2/Protoforge | Identified Exp. Melee Analysis Suite 26864 | -2/Protoforge | Destroyed 12 combat bots 26936 | -2/Protoforge | Destroyed 9 combat bots 27041 | -2/Protoforge | Destroyed 7 combat bots 27089 | -2/Protoforge | Destroyed 7 combat bots 27429 | -2/Protoforge | Destroyed 14 combat bots 27674 | -2/Protoforge | High security lockdown imminent 27743 | -2/Protoforge | Destroyed 25 combat bots 27754 | -2/Protoforge | High security lockdown engaged 28143 | -2/Protoforge | Spotted Investigator 28148 | -2/Protoforge | Destroyed Investigator 28216 | -2/Protoforge | Destroyed 19 combat bots 28224 | -2/Protoforge | Spotted Executioner 28227 | -2/Protoforge | Spotted Striker 28227 | -2/Protoforge | Spotted Executioner 28228 | -2/Protoforge | Spotted Investigator 28228 | -2/Protoforge | Spotted Executioner 28228 | -2/Protoforge | Spotted Executioner 28229 | -2/Protoforge | Spotted Executioner 28231 | -2/Protoforge | Destroyed Executioner 28232 | -2/Protoforge | Destroyed Executioner 28237 | -2/Protoforge | Destroyed Investigator 28238 | -2/Protoforge | Destroyed Executioner 28238 | -2/Protoforge | Destroyed Executioner 28239 | -2/Protoforge | Destroyed Striker 28243 | -2/Protoforge | Destroyed Executioner 28285 | -2/Protoforge | Destroyed 45 combat bots 28354 | -2/Protoforge | Entered Access 28356 | -1/Access | Reached level 37 28373 | -1/Access | Spotted Striker 28380 | -1/Access | Spotted Striker 28400 | -1/Access | Rewired Striker 28402 | -1/Access | Rewired Striker 28412 | -1/Access | High security lockdown imminent 28457 | -1/Access | Fabricated K-01 Serf? 28485 | -1/Access | Destroyed 18 combat bots 28492 | -1/Access | High security lockdown engaged 28536 | -1/Access | Discovered new exit (range 7) 28537 | -1/Access | Identified exit to Command 28553 | -1/Access | Spotted B-99 Colossus 28553 | -1/Access | Spotted B-99 Colossus 28582 | -1/Access | Core integrity fell below 50% 28600 | -1/Access | Destroyed B-99 Colossus 28601 | -1/Access | Core integrity fell below 20% 28635 | -1/Access | Destroyed B-99 Colossus 28744 | -1/Access | Spotted Executioner 28746 | -1/Access | Destroyed Executioner 28767 | -1/Access | Destroyed 18 combat bots 28786 | -1/Access | Spotted Investigator 28801 | -1/Access | Destroyed Investigator 28872 | -1/Access | Destroyed 10 combat bots 28926 | -1/Access | Destroyed 8 combat bots 28935 | -1/Access | Spotted Striker 28935 | -1/Access | Spotted Striker 28935 | -1/Access | Spotted Executioner 28945 | -1/Access | Destroyed Striker 28946 | -1/Access | Destroyed Striker 28949 | -1/Access | Destroyed Executioner 28968 | -1/Access | Spotted Striker 28968 | -1/Access | Spotted Striker 28975 | -1/Access | Destroyed 11 combat bots 28985 | -1/Access | Destroyed Striker 28989 | -1/Access | Destroyed Striker 29021 | -1/Access | Entered Command 29023 | -1/Command | Reached level 38 29042 | -1/Command | Spotted Striker 29045 | -1/Command | Spotted Striker 29057 | -1/Command | Rewired Striker 29078 | -1/Command | Rewired Striker 29078 | -1/Command | Spotted Executioner 29079 | -1/Command | Spotted Executioner 29091 | -1/Command | Destroyed Executioner 29186 | -1/Command | Spotted B-99 Colossus 29262 | -1/Command | Phase Generator disabled 29271 | -1/Command | First assault squad dispatched 29370 | -1/Command | Destroyed 8 combat bots 29418 | -1/Command | Destroyed B-99 Colossus 29454 | -1/Command | Destroyed 17 combat bots 29559 | -1/Command | Spotted M Guard 29559 | -1/Command | Spotted M Guard 29560 | -1/Command | Spotted Combat Programmer 29572 | -1/Command | Spotted Combat Programmer 29609 | -1/Command | Destroyed Combat Programmer 29613 | -1/Command | Destroyed Combat Programmer 29727 | -1/Command | Destroyed M Guard 29867 | -1/Command | Destroyed 20 combat bots 30297 | -1/Command | Destroyed 11 combat bots 30373 | -1/Command | Destroyed 7 combat bots 30448 | -1/Command | Destroyed 15 combat bots 30497 | -1/Command | Reached level 39 30565 | -1/Command | Destroyed 19 combat bots 30653 | -1/Command | Destroyed 15 combat bots 30732 | -1/Command | High security lockdown imminent 30812 | -1/Command | High security lockdown engaged 30859 | -1/Command | Destroyed M Guard 30859 | -1/Command | All MAIN.C guards destroyed 30863 | -1/Command | Found Prototype Device 30863 | -1/Command | Identified Thermal Barrier 30993 | -1/Command | Spotted Investigator 30996 | -1/Command | Destroyed Investigator 31023 | -1/Command | Destroyed 12 combat bots 31099 | -1/Command | Destroyed 7 combat bots 31117 | -1/Command | Spotted Executioner 31118 | -1/Command | Spotted Executioner 31118 | -1/Command | Spotted Striker 31119 | -1/Command | Destroyed Executioner 31120 | -1/Command | Destroyed Striker 31126 | -1/Command | Spotted Striker 31126 | -1/Command | Spotted Executioner 31141 | -1/Command | Destroyed 8 combat bots 31142 | -1/Command | Destroyed Striker 31143 | -1/Command | Destroyed Executioner 31154 | -1/Command | Destroyed Executioner 31282 | -1/Command | Crushed by falling debris 31306 | -1/Command | Destroyed 38 combat bots 31361 | -1/Command | Destroyed 13 combat bots 31414 | -1/Command | Destroyed 9 combat bots 31574 | -1/Command | Destroyed 38 combat bots 31663 | -1/Command | Destroyed 14 combat bots 31701 | -1/Command | Destroyed 7 combat bots 32048 | -1/Command | Destroyed 26 combat bots 32106 | -1/Command | Destroyed 11 combat bots 32298 | -1/Command | Destroyed 43 combat bots 32422 | -1/Command | Destroyed 34 combat bots 32466 | -1/Command | Destroyed 11 combat bots 32476 | -1/Command | Reached level 40 32794 | -1/Command | Destroyed 20 combat bots 33130 | -1/Command | Destroyed 28 combat bots 33185 | -1/Command | Met MAIN.C 33237 | -1/Command | Destroyed MAIN.C Shell 33239 | -1/Command | MAIN.C activated Command garrisons 33368 | -1/Command | Destroyed MAIN.C 33369 | -1/Command | Identified Subatomic Replicator 33369 | -1/Command | Discovered new exit (range 193) 33369 | -1/Command | Discovered new exit (range 92) 33369 | -1/Command | Extracted map data and part IDs from MAIN.C's data core 33398 | -1/Command | Interfaced with 0b10 Conduit 33398 | *** | Assimilated 0b10! Last Messages --------------- 33343_ Upgraded: Core Integrity (+150) 33345_ Slug penetrates MAIN.C. 33350_ Upgraded: Core Integrity (+200) 33358_ Slug penetrates MAIN.C. 33361_ Upgraded: Core Integrity (+50) 33362_ Upgraded: Core Integrity (+200) 33365_ Adv. Hardlight Generator destroyed. 33368_ Acquired 10 matter. 33368_ MAIN.C: "I hope you know you're still going to DIE HERE WITH ME!" 33368_ MAIN.C destroyed. 33369_ EXIT=FOUND 33369_ Acquired data core, extracted map data and part IDs. 33370_ Acquired Adv. Quantum Shading Machine. 33371_ Dropped Adv. Gravity Neutralizer. 33372_ Acquired 10 matter. 33374_ Used Protomatter to restore core integrity (+42, depleted) 33398_ Interfacing with system... Map ----- +----------------------------------------------------+ | #???????????????????????????????????????#?#?#? | | #???????????????????????????????????????#?#?#? | | #???????????????????????????????????????#?#?#? | | ###+############################################## | | ######################################## | | ######################################## | | ######################################## | | ######################################## | | ######################################## | | ######################################## | | ######################################## | | ##+#+############################################# | | ############################################# | | ############################################# | | ################################################## | | ########################################## | | ########""""""" """" ############# | | ########"" "" ############# | | ########""""" "" ############# | | ########""""""""""" / | | ########" " """ / | | ########"" """""" !![ ; | | ########"" """""" ! = ############# | | ##+############# " """""" !! ############# | | ########## " "" ############# | | ########## " "@ ""############# | | """" ##########""""""""" """""""############# | | """" ##########"" """""""""############# | | """" ########## """""""""""############# | | """" ########## " " " " ############# | | ########## " " " " ############# | | # " " " """" " ############# | | """ + """ " " """" ############# | | """" # " " " " ############# | | """" ###+###### """""""""" " ############# | | """" ## ##### " """ " """"""""############# | | ## ##### """ " " " ############# | | ## ####################################### | | ## ####################################### | | ## ####################################### | | ## ####################################### | | ## ####################################### | | +"##+############################################# | | ######################################## | | ######################################## | | ######################################## | | ######################################## | | #?????????????????????????????????#?#?#? | | #?????????????????????????????????#?#?#? | | ####+##+###?????????????????????????????????#?#?#? | +----------------------------------------------------+ Best States ------------- Heat Dissipation 117 Energy Generation 94 Energy Capacity 4000 Matter Stores 300 Matter Capacity 300 Sight Range 16 Robot Scan Range 16 Terrain Scan Range 16 Terrain Scan Density 10 Power Amplification 40 Additional Mass Support 25 Corruption Block 20 Armor Coverage 800 Resistance: KI 30 Resistance: TH 50 Weapon Shielding 100 Weapon Cycling 20 Evasion (%) 79 Targeting Accuracy 30 Core Analysis 8 Armor Integrity Analysis 50 Particle Charging 25 Offensive Hacking 20 Defensive Hacking 25 Authchip Count 1 Item Schematics ----------------- Adv. Sensor Array | -7/Zion | Archive EM Disruption Field | -7/Zion | Archive Imp. Component Analysis Suite | -7/Zion | Archive Hvy. Shock Bomb Launcher | -7/Zion | Archive Microactuators | -7/Zion | Archive Fission Core | -7/Zion | Archive Coil Gun | -7/Zion | Archive Plasma Cannon | -7/Zion | Archive EM Shield | -7/Zion | Archive Arc Projector | -7/Zion | Archive Xenon Bombardment Thruster | -7/Zion | Archive Launcher Guidance Computer | -7/Zion | Archive Hyp. Gauss Rifle | -7/Zion | Archive Imp. Particle Charger | -7/Zion | Archive Power Maul | -7/Zion | Archive Combat Drone Bay | -6/Data Miner | Free Lgt. Regenerative Plating | -6/Data Miner | Free Cld. Gravmag System | -6/Data Miner | Free Prc. Matter Filter | -6/Data Miner | Free Hvy. Proton Cannon | -6/Data Miner | Free Field Propulsion Array | -6/Data Miner | Free Adv. Trap Scanner | -6/Data Miner | Free Hvy. Disruptor Cannon | -6/Data Miner | Free Imp. System Guard | -6/Data Miner | Free Quantum Capacitor | -5/Factory | Hacked Lgt. Antimatter Cannon | -3/Quarantine | Archive Multireflex Exoskeleton | -3/Quarantine | Archive Kinetic Spear | -3/Quarantine | Archive Enh. Force Rifle | -3/Quarantine | Archive Imp. Energy Well | -3/Quarantine | Archive Centrium Medium Armor Plating | -3/Quarantine | Archive Fusion Reactor | -3/Quarantine | Archive Exp. Terrain Scan Processor | -3/Quarantine | Archive Exp. Thermal Generator | -3/Quarantine | Archive Coolant Network | -3/Quarantine | Archive Enh. Biometal Leg | -3/Quarantine | Archive Com. Linear Accelerator | -2/Testing | Archive Centrium Heavy Armor Plating | -2/Testing | Archive Graviton Reactor | -2/Testing | Archive Hvy. Wave Gun | -2/Testing | Archive System Restoration Module | -2/Protoforge | Hacked Imp. System Restoration Module | -2/Protoforge | Hacked Adv. System Restoration Module | -2/Protoforge | Hacked Cld. Nuclear Pulse Thruster | -2/Protoforge | Archive Com. Particle Reactor | -2/Protoforge | Archive Adv. Quantum Shading Machine | -2/Protoforge | Archive Imp. Thermal Defense Suite | -2/Protoforge | Archive Exp. Targeting Computer | -2/Protoforge | Archive Exp. Thermal Shield | -2/Protoforge | Archive Ionic Axe | -2/Protoforge | Archive Robot Schematics ------------------ M-14 Sweeper | -7/Zion | Archive R-06 Scavenger | -7/Zion | Archive T-07 Excavator | -7/Zion | Archive K-01 Serf | -6/Factory | Archive A-02 Transporter | -6/Factory | Archive A-15 Conveyor | -6/Factory | Archive R-10 Processor | -6/Factory | Archive M-22 Extractor | -6/Factory | Archive M-30 Cleanser | -6/Factory | Archive M-13 Machinist | -6/Factory | Archive M-28 Smith | -6/Factory | Archive M-36 Artificer | -6/Factory | Archive O-16 Technician | -6/Factory | Archive O-24 Administrator | -6/Factory | Archive O-32 Director | -6/Factory | Archive W-16 Scout | -6/Factory | Archive W-25 Informer | -6/Factory | Archive W-44 Eye | -6/Factory | Archive S-10 Pest | -6/Factory | Archive S-27 Virus | -6/Factory | Archive S-43 Plague | -6/Factory | Archive G-34 Mercenary | -6/Factory | Archive G-47 Trooper | -6/Factory | Archive G-50 Soldier | -6/Factory | Archive G-67 Veteran | -6/Factory | Archive G-73 Enforcer | -6/Factory | Archive B-36 Bruiser | -6/Factory | Archive B-48 Gladiator | -6/Factory | Archive B-60 Warrior | -6/Factory | Archive B-74 Champion | -6/Factory | Archive L-31 Rogue | -6/Factory | Archive L-41 Fighter | -6/Factory | Archive L-61 Swordsman | -6/Factory | Archive Y-45 Defender | -6/Factory | Archive Y-54 Guardian | -6/Factory | Archive Y-64 Sentinel | -6/Factory | Archive Y-72 Warden | -6/Factory | Archive D-53 Grenadier | -6/Factory | Archive D-63 Destroyer | -6/Factory | Archive D-83 Annihilator | -6/Factory | Archive X-57 Shotgunner | -6/Factory | Archive X-62 Marksman | -6/Factory | Archive X-67 Chaingunner | -6/Factory | Archive X-72 Disruptor | -6/Factory | Archive X-77 Beamer | -6/Factory | Archive X-82 Rainmaker | -6/Factory | Archive X-87 Electro | -6/Factory | Archive H-55 Commando | -6/Factory | Archive H-66 Slayer | -6/Factory | Archive H-77 Assassin | -6/Factory | Archive H-88 Terminator | -6/Factory | Archive P-60 Hacker | -6/Factory | Archive P-70 Sage | -6/Factory | Archive P-80 Master | -6/Factory | Archive A-27 Freighter | -6/Data Miner | Free C-55 Analyst | -2/Protoforge | Archive Fabricated ------------ X-87 Electro | x2 | -6/Factory X-87 Electro | x2 | -6/Factory X-87 Electro | x2 | -6/Factory X-87 Electro | x2 | -5/Proximity Caves Quantum Capacitor | x2 | -5/Factory P-80 Master | x2 | -4/Factory P-80 Master | x2 | -4/Factory P-80 Master | x2 | -4/Factory P-80 Master | x2 | -4/Factory P-80 Master | x2 | -4/Factory P-80 Master | x2 | -4/Factory P-80 Master | x2 | -4/Armory | Authchip P-80 Master | x2 | -4/Armory | Authchip P-80 Master | x2 | -4/Armory Adv. System Restoration Module | x2 | -2/Protoforge K-01 Serf | x4 | -1/Access | Preloaded Repaired ---------- Nothing Studied --------- Lgt. Nuclear Core | -8/Materials | Hacked Mic. Nuclear Core | -6/Factory | Hacked Alien Tech Used ----------------- None Achievements -------------- Blue Mage Brother of Steel Construction Begets Destruction Disruptive Presence Godhack I Like You, Cogmind IP Theft Inventory(Loot) My Bad My Business Is Booming Official Business Oppo Buddy Please No, No That Plot Armor Protector Super-what Now? The Robot, The Myth, The Legend Challenges ------------ None RPGLIKE | -11 -10 -10 -8 -8 -7 -7 -7 -7 -7 -6 -6 -6 -6 -6 -5 -5 -5 -5 -5 -5 -5 -4 -4 -4 -4 -4 -3 -3 -2 -2 -2 -1 -1 --------- Run | Yrd Mat Sub Mat Gar Fac Low Low Zio Dee Pro Fac Low Low Dat Pro Fac Was Fac Upp Upp War Pro Fac Was Fac Arm Res Qua Res Tes Frg Acc Com Levels Raised 39 | . 3 1 6 2 5 1 . . . 1 2 . . . 1 1 . 2 . . 1 . 2 . . 1 . 1 2 1 2 1 3 XP Earned 62070 | 3000 5450 1483 8490 3300 8079 429 105 57 174 1059 3771 321 116 73 1421 1313 32 2158 166 166 1702 611 1854 15 908 641 821 963 2513 2455 3068 1781 3575 XP Spent 61360 | 2960 900 4900 4700 . 15040 750 . . 745 800 2400 . . . 2600 1380 . 1400 . . 1700 . 3180 . . 1000 . 3200 1100 3580 3025 1500 4500 Upgrades 104 | 9 2 8 5 . 18 1 . . 5 1 2 . . . 1 5 . 2 . . 1 . 5 . . 1 . 1 1 3 10 3 20 Power Slot 2 | 1 . . . . . . . . . . 1 . . . . . . . . . . . . . . . . . . . . . . Propulsion Slot 5 | 1 . 1 1 . 1 . . . . . . . . . . . . . . . 1 . . . . . . . . . . . . Utility Slot 10 | 1 . 2 1 . 3 . . . . . . . . . 1 . . . . . . . 1 . . . . 1 . . . . . Weapon Slot 3 | 1 . . . . . . . . . 1 . . . . . . . . . . . . . . . . . . 1 . . . . Core Integrity 24 | . . . . . . . . . 1 . . . . . . 2 . . . . . . 4 . . . . . . . . . 17 Heat Dissipation 10 | 3 . . . . 2 . . . 4 . . . . . . . . . . . . . . . . . . . . 1 . . . Energy Generation 3 | . . . 1 . 1 . . . . . . . . . . 1 . . . . . . . . . . . . . . . . . Mass Support 5 | . . 2 1 . . . . . . . 1 . . . . . . . . . . . . . . . . . . 1 . . . Inventory Capacity 6 | 2 . . . . . 1 . . . . . . . . . . . . . . . . . . . 1 . . . 1 1 . . Sensor Range 8 | . . . . . . . . . . . . . . . . . . . . . . . . . . . . . . . 6 1 1 Ranged Accuracy 8 | . 2 2 1 . 3 . . . . . . . . . . . . . . . . . . . . . . . . . . . . Melee Accuracy 2 | . . . . . . . . . . . . . . . . 2 . . . . . . . . . . . . . . . . . Hack Attack % 3 | . . . . . 2 . . . . . . . . . . . . 1 . . . . . . . . . . . . . . . Hack Defense % 3 | . . . . . 2 . . . . . . . . . . . . 1 . . . . . . . . . . . . . . . KI Resistance % 4 | . . . . . 1 . . . . . . . . . . . . . . . . . . . . . . . . . 1 2 . TH Resistance % 4 | . . . . . . . . . . . . . . . . . . . . . . . . . . . . . . . 2 . 2 TH Damage % 4 | . . 1 . . 3 . . . . . . . . . . . . . . . . . . . . . . . . . . . . Protomatter Created 48139 | . 574 411 1034 424 2462 392 57 . 21 338 1749 271 . . 948 697 . 2752 312 297 4608 365 1883 168 1761 995 228 468 819 1576 10053 1926 10550 Integrity Restored 52570 | . 1059 885 1421 798 3376 811 65 . 48 832 2324 294 177 . 813 377 . 3818 141 54 3951 183 2272 176 1291 962 561 373 789 2034 11224 2395 9066 Core 40663 | . 912 616 756 399 2666 573 14 . 31 744 1754 178 177 . 591 299 . 3097 113 45 3150 143 1871 106 1041 936 337 278 722 1578 8798 1801 6937 Parts 11907 | . 147 269 665 399 710 238 51 . 17 88 570 116 . . 222 78 . 721 28 9 801 40 401 70 250 26 224 95 67 456 2426 594 2129 Protomatter Decayed 18737 | . 69 78 397 161 767 69 35 . 4 13 1148 69 26 . 637 650 . 1311 90 220 1447 294 1024 168 1070 816 102 426 1199 214 2836 149 3248 Game ------ Seed HeatNavigationMiniperforator Manual? 0 Play Time 09:24:52 Cumulative 449.5 hours Start 2025.11.06 @ 09:08:30 End 2025.11.08 @ 15:01:30 Sessions 17 Manual Loads 0 Difficulty Rogue Special Mode Winter2019/RPGLIKE Game No. 164 Rogue 10 Adventurer 154 Explorer 0 Win Type 4 Total 18 Types 3/3/3/3/2/1/0/1/1/1 Lore% 92 Gallery% 83 Achievement% 60 Wizard Run 0 Options --------- Layout 2 ASCII 0 Keyboard 0 Movement Numpad Keybinds 0 Fullscreen 2 Font 24/Smallcaps Map View 50x44 Zoom Use 0% Tactical HUD 1 Map Filters NONE Filters NONE Steam 1 RUN: 128109a3-4b49-49a0-9a14-05748068c1ba